{"text_format":"1","workbook":"xlsx","n_sheets":6,"sheets":["Bestellübersicht","Frühstück und Coffee Break","Sandwiches & Apéro","Lunch","Dessert","Getränke"],"not_rendered":{"charts":0,"images":10,"macros":1,"external_links":0,"defined_names":13,"comments":0,"pivot_tables":0},"unopened":[],"bounds":{"document_bytes":16777216,"sheet_cells":100000,"rows_first":2000,"rows_last":500,"rows_between":2000,"halvings":0,"cell_chars":16384,"cell_head_chars":4096},"cells_cut":0,"cells_raw":0,"read":"whole","date_system":"1900"}

{"sheet":"Bestellübersicht","index":0,"n_rows":267,"n_cols":7,"rows_kept":267,"cut":false,"hidden":false,"merged":[[23,1,23,6],[24,1,24,6],[25,1,25,6],[22,1,22,6],[2,0,2,6],[19,1,20,6],[6,1,6,6],[12,1,12,6],[15,1,15,6],[16,1,16,6],[13,1,13,6],[10,1,10,6],[14,2,14,3],[14,5,14,6],[11,1,11,6]]}
[" Bestellung Catering"]
[]
["Bitte bestellen Sie mind. 5 Werktage im Voraus per Mail an vbz@eurest.ch"]
[]
["Bestellangaben"]
["Navigieren Sie ganz unkompiziert durch das Bestellformular."]
["Name des Bestellers"]
["Telefon"]
["E-Mail"]
["Kostenstelle / Abteilung"]
["Aufladung Verpflegungskarte","CHF "]
["SAP Nummer"]
["Bestelldatum"]
["Art der Bestellung"]
["Datum und Zeit des Events / Lieferung","Datum"]
["Lieferort (nur bei Lieferung)"]
["Zeit Retouren (nur bei Lieferung)"]
["Service gewünscht / Zeit",null,"von","00.00","bis ","00.00"]
["Zahlungsart"]
["Kommentar"]
[]
["Rechnungsadresse"]
["Firma"]
["Abteilung"]
["Strasse"]
["Ort"]
[]
["Ihre Bestellung","Einheit",null,"Preis/Einheit","Anzahl",null,"Total"]
[{"$f":"'Frühstück und Coffee Break'!A7","v":"Einfaches Frühstück \nFrischer Kaffee oder Tee\nOrangensaft \nFrisches Gipfeli\nSaisonale Frucht   \nHausgemachtes Flavoured Water   "},{"$f":"'Frühstück und Coffee Break'!B7","v":"pro Person"},{"$f":"'Frühstück und Coffee Break'!C7","v":"CHF"},{"$f":"'Frühstück und Coffee Break'!D7","v":8.4},{"$f":"'Frühstück und Coffee Break'!F7","v":0},{"$f":"'Frühstück und Coffee Break'!G7","v":"CHF"},{"$f":"'Frühstück und Coffee Break'!H7","v":0}]
[{"$f":"'Frühstück und Coffee Break'!A8","v":"Einfaches Frühstück \nFrischer Kaffee oder Tee\nOrangensaft \nKnuspriges Brötchen\nSaisonale Frucht   \nHausgemachtes Flavoured Water   "},{"$f":"'Frühstück und Coffee Break'!B8","v":"pro Person"},{"$f":"'Frühstück und Coffee Break'!C8","v":"CHF"},{"$f":"'Frühstück und Coffee Break'!D8","v":8.4},{"$f":"'Frühstück und Coffee Break'!F8","v":0},{"$f":"'Frühstück und Coffee Break'!G8","v":"CHF"},{"$f":"'Frühstück und Coffee Break'!H8","v":0}]
[{"$f":"'Frühstück und Coffee Break'!A9","v":"Glutenarmes Frühstück \nFrischer Kaffee oder Tee\nOrangensaft \nGlutenfreies Brötchen (separat verpackt)\nButter und Konfitüre\nJogurt mit Früchte Topping\nSaisonale Frucht  \nHausgemachtes Flavoured Water "},{"$f":"'Frühstück und Coffee Break'!B9","v":"pro Person"},{"$f":"'Frühstück und Coffee Break'!C9","v":"CHF"},{"$f":"'Frühstück und Coffee Break'!D9","v":17.600000000000001},{"$f":"'Frühstück und Coffee Break'!F9","v":0},{"$f":"'Frühstück und Coffee Break'!G9","v":"CHF"},{"$f":"'Frühstück und Coffee Break'!H9","v":0}]
[{"$f":"'Frühstück und Coffee Break'!A10","v":"Glutenarmes Frühstück \nFrischer Kaffee oder Tee\nFrischer Smoothie\nGlutenfreies Brötchen (separat verpackt)\nButter und Konfitüre\nJogurt mit Früchte Topping\nSaisonale Frucht  \nHausgemachtes Flavoured Water "},{"$f":"'Frühstück und Coffee Break'!B10","v":"pro Person"},{"$f":"'Frühstück und Coffee Break'!C10","v":"CHF"},{"$f":"'Frühstück und Coffee Break'!D10","v":17.600000000000001},{"$f":"'Frühstück und Coffee Break'!F10","v":0},{"$f":"'Frühstück und Coffee Break'!G10","v":"CHF"},{"$f":"'Frühstück und Coffee Break'!H10","v":0}]
[{"$f":"'Frühstück und Coffee Break'!A11","v":"Französisches Frühstück\nFrischer Kaffee oder Tee\nOrangensaft \nBrioche\nKäseauswahl\nJogurt mit Honig und Nüssen\nHausgemachtes Flavoured Water"},{"$f":"'Frühstück und Coffee Break'!B11","v":"pro Person"},{"$f":"'Frühstück und Coffee Break'!C11","v":"CHF"},{"$f":"'Frühstück und Coffee Break'!D11","v":23},{"$f":"'Frühstück und Coffee Break'!F11","v":0},{"$f":"'Frühstück und Coffee Break'!G11","v":"CHF"},{"$f":"'Frühstück und Coffee Break'!H11","v":0}]
[{"$f":"'Frühstück und Coffee Break'!A12","v":"Add-Ons / Snacks\nFrühstück ab 5 Personen bestellbar"},{"$f":"'Frühstück und Coffee Break'!B12","v":0},{"$f":"'Frühstück und Coffee Break'!C12","v":0},{"$f":"'Frühstück und Coffee Break'!D12","v":0},{"$f":"'Frühstück und Coffee Break'!F12","v":0},{"$f":"'Frühstück und Coffee Break'!G12","v":0},{"$f":"'Frühstück und Coffee Break'!H12","v":0}]
[{"$f":"'Frühstück und Coffee Break'!A13","v":"Buttergipfeli"},{"$f":"'Frühstück und Coffee Break'!B13","v":"pro Stück"},{"$f":"'Frühstück und Coffee Break'!C13","v":"CHF"},{"$f":"'Frühstück und Coffee Break'!D13","v":1.3},{"$f":"'Frühstück und Coffee Break'!F13","v":0},{"$f":"'Frühstück und Coffee Break'!G13","v":"CHF"},{"$f":"'Frühstück und Coffee Break'!H13","v":0}]
[{"$f":"'Frühstück und Coffee Break'!A14","v":"Laugengipfeli"},{"$f":"'Frühstück und Coffee Break'!B14","v":"pro Stück"},{"$f":"'Frühstück und Coffee Break'!C14","v":"CHF"},{"$f":"'Frühstück und Coffee Break'!D14","v":1.3},{"$f":"'Frühstück und Coffee Break'!F14","v":0},{"$f":"'Frühstück und Coffee Break'!G14","v":"CHF"},{"$f":"'Frühstück und Coffee Break'!H14","v":0}]
[{"$f":"'Frühstück und Coffee Break'!A15","v":"Rusticogipfeli"},{"$f":"'Frühstück und Coffee Break'!B15","v":"pro Stück"},{"$f":"'Frühstück und Coffee Break'!C15","v":"CHF"},{"$f":"'Frühstück und Coffee Break'!D15","v":1.3},{"$f":"'Frühstück und Coffee Break'!F15","v":0},{"$f":"'Frühstück und Coffee Break'!G15","v":"CHF"},{"$f":"'Frühstück und Coffee Break'!H15","v":0}]
[{"$f":"'Frühstück und Coffee Break'!A16","v":"Knuspriges Bürli"},{"$f":"'Frühstück und Coffee Break'!B16","v":"pro Stück"},{"$f":"'Frühstück und Coffee Break'!C16","v":"CHF"},{"$f":"'Frühstück und Coffee Break'!D16","v":1.4},{"$f":"'Frühstück und Coffee Break'!F16","v":0},{"$f":"'Frühstück und Coffee Break'!G16","v":"CHF"},{"$f":"'Frühstück und Coffee Break'!H16","v":0}]
[{"$f":"'Frühstück und Coffee Break'!A17","v":"Weggli"},{"$f":"'Frühstück und Coffee Break'!B17","v":"pro Stück"},{"$f":"'Frühstück und Coffee Break'!C17","v":"CHF"},{"$f":"'Frühstück und Coffee Break'!D17","v":1.4},{"$f":"'Frühstück und Coffee Break'!F17","v":0},{"$f":"'Frühstück und Coffee Break'!G17","v":"CHF"},{"$f":"'Frühstück und Coffee Break'!H17","v":0}]
[{"$f":"'Frühstück und Coffee Break'!A18","v":"Semmeli"},{"$f":"'Frühstück und Coffee Break'!B18","v":"pro Stück"},{"$f":"'Frühstück und Coffee Break'!C18","v":"CHF"},{"$f":"'Frühstück und Coffee Break'!D18","v":1.4},{"$f":"'Frühstück und Coffee Break'!F18","v":0},{"$f":"'Frühstück und Coffee Break'!G18","v":"CHF"},{"$f":"'Frühstück und Coffee Break'!H18","v":0}]
[{"$f":"'Frühstück und Coffee Break'!A19","v":"Früchtebrötli"},{"$f":"'Frühstück und Coffee Break'!B19","v":"pro Stück"},{"$f":"'Frühstück und Coffee Break'!C19","v":"CHF"},{"$f":"'Frühstück und Coffee Break'!D19","v":1.8},{"$f":"'Frühstück und Coffee Break'!F19","v":0},{"$f":"'Frühstück und Coffee Break'!G19","v":"CHF"},{"$f":"'Frühstück und Coffee Break'!H19","v":0}]
[{"$f":"'Frühstück und Coffee Break'!A20","v":"Körnerbrötli"},{"$f":"'Frühstück und Coffee Break'!B20","v":"pro Stück"},{"$f":"'Frühstück und Coffee Break'!C20","v":"CHF"},{"$f":"'Frühstück und Coffee Break'!D20","v":1.4},{"$f":"'Frühstück und Coffee Break'!F20","v":0},{"$f":"'Frühstück und Coffee Break'!G20","v":"CHF"},{"$f":"'Frühstück und Coffee Break'!H20","v":0}]
[{"$f":"'Frühstück und Coffee Break'!A21","v":"Dinkelbrötli"},{"$f":"'Frühstück und Coffee Break'!B21","v":"pro Stück"},{"$f":"'Frühstück und Coffee Break'!C21","v":"CHF"},{"$f":"'Frühstück und Coffee Break'!D21","v":1.4},{"$f":"'Frühstück und Coffee Break'!F21","v":0},{"$f":"'Frühstück und Coffee Break'!G21","v":"CHF"},{"$f":"'Frühstück und Coffee Break'!H21","v":0}]
[{"$f":"'Frühstück und Coffee Break'!A22","v":"Sojasemmel"},{"$f":"'Frühstück und Coffee Break'!B22","v":"pro Stück"},{"$f":"'Frühstück und Coffee Break'!C22","v":"CHF"},{"$f":"'Frühstück und Coffee Break'!D22","v":1.4},{"$f":"'Frühstück und Coffee Break'!F22","v":0},{"$f":"'Frühstück und Coffee Break'!G22","v":"CHF"},{"$f":"'Frühstück und Coffee Break'!H22","v":0}]
[{"$f":"'Frühstück und Coffee Break'!A23","v":"Jogurt mit Früchte-Topping im Glas"},{"$f":"'Frühstück und Coffee Break'!B23","v":"pro Stück"},{"$f":"'Frühstück und Coffee Break'!C23","v":"CHF"},{"$f":"'Frühstück und Coffee Break'!D23","v":3.5},{"$f":"'Frühstück und Coffee Break'!F23","v":0},{"$f":"'Frühstück und Coffee Break'!G23","v":"CHF"},{"$f":"'Frühstück und Coffee Break'!H23","v":0}]
[{"$f":"'Frühstück und Coffee Break'!A24","v":"Jogurt mit Crunch Topping im Glas"},{"$f":"'Frühstück und Coffee Break'!B24","v":"pro Stück"},{"$f":"'Frühstück und Coffee Break'!C24","v":"CHF"},{"$f":"'Frühstück und Coffee Break'!D24","v":3.5},{"$f":"'Frühstück und Coffee Break'!F24","v":0},{"$f":"'Frühstück und Coffee Break'!G24","v":"CHF"},{"$f":"'Frühstück und Coffee Break'!H24","v":0}]
[{"$f":"'Frühstück und Coffee Break'!A25","v":"Hausgemachtes Birchermüesli im Glas"},{"$f":"'Frühstück und Coffee Break'!B25","v":"pro Stück"},{"$f":"'Frühstück und Coffee Break'!C25","v":"CHF"},{"$f":"'Frühstück und Coffee Break'!D25","v":3.8},{"$f":"'Frühstück und Coffee Break'!F25","v":0},{"$f":"'Frühstück und Coffee Break'!G25","v":"CHF"},{"$f":"'Frühstück und Coffee Break'!H25","v":0}]
[{"$f":"'Frühstück und Coffee Break'!A26","v":"Laktosefreies Jogurt"},{"$f":"'Frühstück und Coffee Break'!B26","v":"pro Stück"},{"$f":"'Frühstück und Coffee Break'!C26","v":"CHF"},{"$f":"'Frühstück und Coffee Break'!D26","v":2.6},{"$f":"'Frühstück und Coffee Break'!F26","v":0},{"$f":"'Frühstück und Coffee Break'!G26","v":"CHF"},{"$f":"'Frühstück und Coffee Break'!H26","v":0}]
[{"$f":"'Frühstück und Coffee Break'!A27","v":"Fruchtsalat im Glas"},{"$f":"'Frühstück und Coffee Break'!B27","v":"pro Stück"},{"$f":"'Frühstück und Coffee Break'!C27","v":"CHF"},{"$f":"'Frühstück und Coffee Break'!D27","v":3},{"$f":"'Frühstück und Coffee Break'!F27","v":0},{"$f":"'Frühstück und Coffee Break'!G27","v":"CHF"},{"$f":"'Frühstück und Coffee Break'!H27","v":0}]
[{"$f":"'Frühstück und Coffee Break'!A28","v":"Süsses und Spezielles"},{"$f":"'Frühstück und Coffee Break'!B28","v":0},{"$f":"'Frühstück und Coffee Break'!C28","v":0},{"$f":"'Frühstück und Coffee Break'!D28","v":0},{"$f":"'Frühstück und Coffee Break'!F28","v":0},{"$f":"'Frühstück und Coffee Break'!G28","v":0},{"$f":"'Frühstück und Coffee Break'!H28","v":0}]
[{"$f":"'Frühstück und Coffee Break'!A29","v":"Schoggigipfeli"},{"$f":"'Frühstück und Coffee Break'!B29","v":"pro Stück"},{"$f":"'Frühstück und Coffee Break'!C29","v":"CHF"},{"$f":"'Frühstück und Coffee Break'!D29","v":2.7},{"$f":"'Frühstück und Coffee Break'!F29","v":0},{"$f":"'Frühstück und Coffee Break'!G29","v":"CHF"},{"$f":"'Frühstück und Coffee Break'!H29","v":0}]
[{"$f":"'Frühstück und Coffee Break'!A30","v":"Dounut\n"},{"$f":"'Frühstück und Coffee Break'!B30","v":"pro Stück"},{"$f":"'Frühstück und Coffee Break'!C30","v":"CHF"},{"$f":"'Frühstück und Coffee Break'!D30","v":1.6},{"$f":"'Frühstück und Coffee Break'!F30","v":0},{"$f":"'Frühstück und Coffee Break'!G30","v":"CHF"},{"$f":"'Frühstück und Coffee Break'!H30","v":0}]
[{"$f":"'Frühstück und Coffee Break'!A31","v":"Brownie"},{"$f":"'Frühstück und Coffee Break'!B31","v":"pro Stück"},{"$f":"'Frühstück und Coffee Break'!C31","v":"CHF"},{"$f":"'Frühstück und Coffee Break'!D31","v":3.6},{"$f":"'Frühstück und Coffee Break'!F31","v":0},{"$f":"'Frühstück und Coffee Break'!G31","v":"CHF"},{"$f":"'Frühstück und Coffee Break'!H31","v":0}]
[{"$f":"'Frühstück und Coffee Break'!A32","v":"Mini Patisserie, assortiert"},{"$f":"'Frühstück und Coffee Break'!B32","v":"pro Person"},{"$f":"'Frühstück und Coffee Break'!C32","v":"CHF"},{"$f":"'Frühstück und Coffee Break'!D32","v":2.5},{"$f":"'Frühstück und Coffee Break'!F32","v":0},{"$f":"'Frühstück und Coffee Break'!G32","v":"CHF"},{"$f":"'Frühstück und Coffee Break'!H32","v":0}]
[{"$f":"'Frühstück und Coffee Break'!A33","v":"Fruchtspiessli"},{"$f":"'Frühstück und Coffee Break'!B33","v":"pro Stück"},{"$f":"'Frühstück und Coffee Break'!C33","v":"CHF"},{"$f":"'Frühstück und Coffee Break'!D33","v":5.7},{"$f":"'Frühstück und Coffee Break'!F33","v":0},{"$f":"'Frühstück und Coffee Break'!G33","v":"CHF"},{"$f":"'Frühstück und Coffee Break'!H33","v":0}]
[{"$f":"'Frühstück und Coffee Break'!A34","v":"Cookie-Variation"},{"$f":"'Frühstück und Coffee Break'!B34","v":"pro Person"},{"$f":"'Frühstück und Coffee Break'!C34","v":"CHF"},{"$f":"'Frühstück und Coffee Break'!D34","v":3.6},{"$f":"'Frühstück und Coffee Break'!F34","v":0},{"$f":"'Frühstück und Coffee Break'!G34","v":"CHF"},{"$f":"'Frühstück und Coffee Break'!H34","v":0}]
[{"$f":"'Frühstück und Coffee Break'!A35","v":"Waffel"},{"$f":"'Frühstück und Coffee Break'!B35","v":"pro Stück"},{"$f":"'Frühstück und Coffee Break'!C35","v":"CHF"},{"$f":"'Frühstück und Coffee Break'!D35","v":3.6},{"$f":"'Frühstück und Coffee Break'!F35","v":0},{"$f":"'Frühstück und Coffee Break'!G35","v":"CHF"},{"$f":"'Frühstück und Coffee Break'!H35","v":0}]
[{"$f":"'Frühstück und Coffee Break'!A36","v":"Bagel mit Frischkäsefüllung "},{"$f":"'Frühstück und Coffee Break'!B36","v":"pro Stück"},{"$f":"'Frühstück und Coffee Break'!C36","v":"CHF"},{"$f":"'Frühstück und Coffee Break'!D36","v":7.7},{"$f":"'Frühstück und Coffee Break'!F36","v":0},{"$f":"'Frühstück und Coffee Break'!G36","v":"CHF"},{"$f":"'Frühstück und Coffee Break'!H36","v":0}]
[{"$f":"'Frühstück und Coffee Break'!A37","v":"Coffee Break\nCoffee Break ab 5 Personen bestellbar"},{"$f":"'Frühstück und Coffee Break'!B37","v":0},{"$f":"'Frühstück und Coffee Break'!C37","v":0},{"$f":"'Frühstück und Coffee Break'!D37","v":0},{"$f":"'Frühstück und Coffee Break'!F37","v":0},{"$f":"'Frühstück und Coffee Break'!G37","v":0},{"$f":"'Frühstück und Coffee Break'!H37","v":0}]
[{"$f":"'Frühstück und Coffee Break'!A38","v":"Swiss Break\nFrischer Kaffee oder Tee\nOrangensaft \nSüssgebäck assortiert\nSaisonaler Früchtekorb \nHausgemachtes Flavoured Water "},{"$f":"'Frühstück und Coffee Break'!B38","v":"pro Person"},{"$f":"'Frühstück und Coffee Break'!C38","v":"CHF"},{"$f":"'Frühstück und Coffee Break'!D38","v":14.9},{"$f":"'Frühstück und Coffee Break'!F38","v":0},{"$f":"'Frühstück und Coffee Break'!G38","v":"CHF"},{"$f":"'Frühstück und Coffee Break'!H38","v":0}]
[{"$f":"'Frühstück und Coffee Break'!A39","v":"French Break\nFrischer Kaffee oder Tee\nOrangensaft  \nBrioche / Croissant\nSaisonaler Früchtekorb\nHausgemachtes Flavoured Water"},{"$f":"'Frühstück und Coffee Break'!B39","v":"pro Person"},{"$f":"'Frühstück und Coffee Break'!C39","v":"CHF"},{"$f":"'Frühstück und Coffee Break'!D39","v":15.4},{"$f":"'Frühstück und Coffee Break'!F39","v":0},{"$f":"'Frühstück und Coffee Break'!G39","v":"CHF"},{"$f":"'Frühstück und Coffee Break'!H39","v":0}]
[{"$f":"'Sandwiches & Apéro'!A7","v":"Kleine Apéro Sandwiches\n(3 Brötchen pro Person)\nVariation an Laugenbrötchen, Rusticobrötchen, \nBrioche und Mini Bürli, gefüllt mit\nThon-Mousse, Frischkäse, Rohschinken, Käse und gegrilltem Gemüse\n"},{"$f":"'Sandwiches & Apéro'!B7","v":"pro Person"},{"$f":"'Sandwiches & Apéro'!C7","v":"CHF"},{"$f":"'Sandwiches & Apéro'!D7","v":10.8},{"$f":"'Sandwiches & Apéro'!F7","v":0},{"$f":"'Sandwiches & Apéro'!G7","v":"CHF"},{"$f":"'Sandwiches & Apéro'!H7","v":0}]
[{"$f":"'Sandwiches & Apéro'!A8","v":"Steinofenbaguette, 52cm\n(reicht für ca. 6 Personen)\nKnuspriges Baguette gefüllt mit Schinken, Salami, Fleischkäse\nund Käse, garniert mit Salat, Gürkchen und Tomaten\n"},{"$f":"'Sandwiches & Apéro'!B8","v":"pro Stück"},{"$f":"'Sandwiches & Apéro'!C8","v":"CHF"},{"$f":"'Sandwiches & Apéro'!D8","v":21.2},{"$f":"'Sandwiches & Apéro'!F8","v":0},{"$f":"'Sandwiches & Apéro'!G8","v":"CHF"},{"$f":"'Sandwiches & Apéro'!H8","v":0}]
[{"$f":"'Sandwiches & Apéro'!A9","v":"Veganes Steinofenbaguette, 52cm\n(reicht für ca. 6 Personen)\nKnuspriges Baguette gefüllt mit Avocado mit weissen Bohnen, Antipasti, Räuchertofu und Hummus\n"},{"$f":"'Sandwiches & Apéro'!B9","v":"pro Stück"},{"$f":"'Sandwiches & Apéro'!C9","v":"CHF"},{"$f":"'Sandwiches & Apéro'!D9","v":25},{"$f":"'Sandwiches & Apéro'!F9","v":0},{"$f":"'Sandwiches & Apéro'!G9","v":"CHF"},{"$f":"'Sandwiches & Apéro'!H9","v":0}]
[{"$f":"'Sandwiches & Apéro'!A10","v":"Triangle Sandwich\nGerösteter Toast gefüllt mit Schinken und Käse\n\n"},{"$f":"'Sandwiches & Apéro'!B10","v":"pro Stück"},{"$f":"'Sandwiches & Apéro'!C10","v":"CHF"},{"$f":"'Sandwiches & Apéro'!D10","v":7.2},{"$f":"'Sandwiches & Apéro'!F10","v":0},{"$f":"'Sandwiches & Apéro'!G10","v":"CHF"},{"$f":"'Sandwiches & Apéro'!H10","v":0}]
[{"$f":"'Sandwiches & Apéro'!A11","v":"Triangle Sandwich\nGerösteter Toast gefüllt mit Thonmousse"},{"$f":"'Sandwiches & Apéro'!B11","v":"pro Stück"},{"$f":"'Sandwiches & Apéro'!C11","v":"CHF"},{"$f":"'Sandwiches & Apéro'!D11","v":7.2},{"$f":"'Sandwiches & Apéro'!F11","v":0},{"$f":"'Sandwiches & Apéro'!G11","v":"CHF"},{"$f":"'Sandwiches & Apéro'!H11","v":0}]
[{"$f":"'Sandwiches & Apéro'!A12","v":"Triangle Sandwich\nGerösteter Toast gefüllt mit Eimousse "},{"$f":"'Sandwiches & Apéro'!B12","v":"pro Stück"},{"$f":"'Sandwiches & Apéro'!C12","v":"CHF"},{"$f":"'Sandwiches & Apéro'!D12","v":7.2},{"$f":"'Sandwiches & Apéro'!F12","v":0},{"$f":"'Sandwiches & Apéro'!G12","v":"CHF"},{"$f":"'Sandwiches & Apéro'!H12","v":0}]
[{"$f":"'Sandwiches & Apéro'!A13","v":"Triangle Sandwich\nGerösteter Toast gefüllt mit Kräuterfrischkäse"},{"$f":"'Sandwiches & Apéro'!B13","v":"pro Stück"},{"$f":"'Sandwiches & Apéro'!C13","v":"CHF"},{"$f":"'Sandwiches & Apéro'!D13","v":7.2},{"$f":"'Sandwiches & Apéro'!F13","v":0},{"$f":"'Sandwiches & Apéro'!G13","v":"CHF"},{"$f":"'Sandwiches & Apéro'!H13","v":0}]
[{"$f":"'Sandwiches & Apéro'!A14","v":"Triangle Sandwich vegan\nGerösteter Toast gefüllt mit Avocado und weissen Bohnen"},{"$f":"'Sandwiches & Apéro'!B14","v":"pro Stück"},{"$f":"'Sandwiches & Apéro'!C14","v":"CHF"},{"$f":"'Sandwiches & Apéro'!D14","v":7.2},{"$f":"'Sandwiches & Apéro'!F14","v":0},{"$f":"'Sandwiches & Apéro'!G14","v":"CHF"},{"$f":"'Sandwiches & Apéro'!H14","v":0}]
[{"$f":"'Sandwiches & Apéro'!A15","v":"Triangle Sandwich vegan\nGerösteter Toast gefüllt mit Antipasti\n"},{"$f":"'Sandwiches & Apéro'!B15","v":"pro Stück"},{"$f":"'Sandwiches & Apéro'!C15","v":"CHF"},{"$f":"'Sandwiches & Apéro'!D15","v":7.2},{"$f":"'Sandwiches & Apéro'!F15","v":0},{"$f":"'Sandwiches & Apéro'!G15","v":"CHF"},{"$f":"'Sandwiches & Apéro'!H15","v":0}]
[{"$f":"'Sandwiches & Apéro'!A16","v":"Triangle Sandwich vegan\nGerösteter Toast gefüllt mit Räuchertofu und Hummus\n"},{"$f":"'Sandwiches & Apéro'!B16","v":"pro Stück"},{"$f":"'Sandwiches & Apéro'!C16","v":"CHF"},{"$f":"'Sandwiches & Apéro'!D16","v":7.2},{"$f":"'Sandwiches & Apéro'!F16","v":0},{"$f":"'Sandwiches & Apéro'!G16","v":"CHF"},{"$f":"'Sandwiches & Apéro'!H16","v":0}]
[{"$f":"'Sandwiches & Apéro'!A17","v":"Canapées \nWeizentoast belegt mit Ei\n"},{"$f":"'Sandwiches & Apéro'!B17","v":"pro Stück"},{"$f":"'Sandwiches & Apéro'!C17","v":"CHF"},{"$f":"'Sandwiches & Apéro'!D17","v":3.6},{"$f":"'Sandwiches & Apéro'!F17","v":0},{"$f":"'Sandwiches & Apéro'!G17","v":"CHF"},{"$f":"'Sandwiches & Apéro'!H17","v":0}]
[{"$f":"'Sandwiches & Apéro'!A18","v":"Canapées\nWeizentoast belegt mit Spargel\n"},{"$f":"'Sandwiches & Apéro'!B18","v":"pro Stück"},{"$f":"'Sandwiches & Apéro'!C18","v":"CHF"},{"$f":"'Sandwiches & Apéro'!D18","v":3.6},{"$f":"'Sandwiches & Apéro'!F18","v":0},{"$f":"'Sandwiches & Apéro'!G18","v":"CHF"},{"$f":"'Sandwiches & Apéro'!H18","v":0}]
[{"$f":"'Sandwiches & Apéro'!A19","v":"Canapées \nWeizentoast belegt mit Lachs\n"},{"$f":"'Sandwiches & Apéro'!B19","v":"pro Stück"},{"$f":"'Sandwiches & Apéro'!C19","v":"CHF"},{"$f":"'Sandwiches & Apéro'!D19","v":3.6},{"$f":"'Sandwiches & Apéro'!F19","v":0},{"$f":"'Sandwiches & Apéro'!G19","v":"CHF"},{"$f":"'Sandwiches & Apéro'!H19","v":0}]
[{"$f":"'Sandwiches & Apéro'!A20","v":"Canapées\nWeizentoast belegt mit Thonmousse \n"},{"$f":"'Sandwiches & Apéro'!B20","v":"pro Stück"},{"$f":"'Sandwiches & Apéro'!C20","v":"CHF"},{"$f":"'Sandwiches & Apéro'!D20","v":3.6},{"$f":"'Sandwiches & Apéro'!F20","v":0},{"$f":"'Sandwiches & Apéro'!G20","v":"CHF"},{"$f":"'Sandwiches & Apéro'!H20","v":0}]
[{"$f":"'Sandwiches & Apéro'!A21","v":"Canapées\nWeizentoast belegt mit Rindstatar\n"},{"$f":"'Sandwiches & Apéro'!B21","v":"pro Stück"},{"$f":"'Sandwiches & Apéro'!C21","v":"CHF"},{"$f":"'Sandwiches & Apéro'!D21","v":3.6},{"$f":"'Sandwiches & Apéro'!F21","v":0},{"$f":"'Sandwiches & Apéro'!G21","v":"CHF"},{"$f":"'Sandwiches & Apéro'!H21","v":0}]
[{"$f":"'Sandwiches & Apéro'!A22","v":"Vollkorn Canapées\nVollkorntoast belegt mit Ei\n"},{"$f":"'Sandwiches & Apéro'!B22","v":"pro Stück"},{"$f":"'Sandwiches & Apéro'!C22","v":"CHF"},{"$f":"'Sandwiches & Apéro'!D22","v":3.6},{"$f":"'Sandwiches & Apéro'!F22","v":0},{"$f":"'Sandwiches & Apéro'!G22","v":"CHF"},{"$f":"'Sandwiches & Apéro'!H22","v":0}]
[{"$f":"'Sandwiches & Apéro'!A23","v":"Vollkorn Canapées\nVollkorntoast belegt mit Spargel\n\n"},{"$f":"'Sandwiches & Apéro'!B23","v":"pro Stück"},{"$f":"'Sandwiches & Apéro'!C23","v":"CHF"},{"$f":"'Sandwiches & Apéro'!D23","v":3.6},{"$f":"'Sandwiches & Apéro'!F23","v":0},{"$f":"'Sandwiches & Apéro'!G23","v":"CHF"},{"$f":"'Sandwiches & Apéro'!H23","v":0}]
[{"$f":"'Sandwiches & Apéro'!A24","v":"Vollkorn Canapées\nVollkorntoast belegt mit Lachs \n"},{"$f":"'Sandwiches & Apéro'!B24","v":"pro Stück"},{"$f":"'Sandwiches & Apéro'!C24","v":"CHF"},{"$f":"'Sandwiches & Apéro'!D24","v":3.6},{"$f":"'Sandwiches & Apéro'!F24","v":0},{"$f":"'Sandwiches & Apéro'!G24","v":"CHF"},{"$f":"'Sandwiches & Apéro'!H24","v":0}]
[{"$f":"'Sandwiches & Apéro'!A25","v":"Vollkorn Canapées\nVollkorntoast belegt mit Thonmousse "},{"$f":"'Sandwiches & Apéro'!B25","v":"pro Stück"},{"$f":"'Sandwiches & Apéro'!C25","v":"CHF"},{"$f":"'Sandwiches & Apéro'!D25","v":3.6},{"$f":"'Sandwiches & Apéro'!F25","v":0},{"$f":"'Sandwiches & Apéro'!G25","v":"CHF"},{"$f":"'Sandwiches & Apéro'!H25","v":0}]
[{"$f":"'Sandwiches & Apéro'!A26","v":"Vollkorn Canapées\nVollkorntoast belegt mit Rindstatar"},{"$f":"'Sandwiches & Apéro'!B26","v":"pro Stück"},{"$f":"'Sandwiches & Apéro'!C26","v":"CHF"},{"$f":"'Sandwiches & Apéro'!D26","v":3.6},{"$f":"'Sandwiches & Apéro'!F26","v":0},{"$f":"'Sandwiches & Apéro'!G26","v":"CHF"},{"$f":"'Sandwiches & Apéro'!H26","v":0}]
[{"$f":"'Sandwiches & Apéro'!A27","v":0},{"$f":"'Sandwiches & Apéro'!B27","v":0},{"$f":"'Sandwiches & Apéro'!C27","v":0},{"$f":"'Sandwiches & Apéro'!D27","v":0},{"$f":"'Sandwiches & Apéro'!F27","v":0},{"$f":"'Sandwiches & Apéro'!G27","v":0},{"$f":"'Sandwiches & Apéro'!H27","v":0}]
[{"$f":"'Sandwiches & Apéro'!A28","v":"Apéro"},{"$f":"'Sandwiches & Apéro'!B28","v":0},{"$f":"'Sandwiches & Apéro'!C28","v":0},{"$f":"'Sandwiches & Apéro'!D28","v":0},{"$f":"'Sandwiches & Apéro'!F28","v":0},{"$f":"'Sandwiches & Apéro'!G28","v":0},{"$f":"'Sandwiches & Apéro'!H28","v":0}]
[{"$f":"'Sandwiches & Apéro'!A29","v":"Varianten\nApéro Variationen ab 10 Personen bestellbar"},{"$f":"'Sandwiches & Apéro'!B29","v":0},{"$f":"'Sandwiches & Apéro'!C29","v":0},{"$f":"'Sandwiches & Apéro'!D29","v":0},{"$f":"'Sandwiches & Apéro'!F29","v":0},{"$f":"'Sandwiches & Apéro'!G29","v":0},{"$f":"'Sandwiches & Apéro'!H29","v":0}]
[{"$f":"'Sandwiches & Apéro'!A30","v":"Small Apéro\nKleine Apéro Sandwiches assortiert\nFruchtsalat im Glas"},{"$f":"'Sandwiches & Apéro'!B30","v":"pro Person"},{"$f":"'Sandwiches & Apéro'!C30","v":"CHF"},{"$f":"'Sandwiches & Apéro'!D30","v":13.5},{"$f":"'Sandwiches & Apéro'!F30","v":0},{"$f":"'Sandwiches & Apéro'!G30","v":"CHF"},{"$f":"'Sandwiches & Apéro'!H30","v":0}]
[{"$f":"'Sandwiches & Apéro'!A31","v":"Medium Apéro\nParty Schinkengipfel\nMini Chäschüechli\nMozzarella-Tomaten Spiess\nZucchini-Röllchen gefüllt mit Frischkäse\nHackbällchen in pikanter Tomatensauce im Glas"},{"$f":"'Sandwiches & Apéro'!B31","v":"pro Person"},{"$f":"'Sandwiches & Apéro'!C31","v":"CHF"},{"$f":"'Sandwiches & Apéro'!D31","v":21.5},{"$f":"'Sandwiches & Apéro'!F31","v":0},{"$f":"'Sandwiches & Apéro'!G31","v":"CHF"},{"$f":"'Sandwiches & Apéro'!H31","v":0}]
[{"$f":"'Sandwiches & Apéro'!A32","v":"Large\nPoulet-Satay Spiessli\nGemüse-Frühlingsrolle mit Sweet Chilisauce\nGebackene Shrimps mit Dip Sauce            \nAsiatischer Gurkensalat im Glas\nAntipasti Spiessli\nGrisini mit Rohschinken\nFruchtsalat im Glas"},{"$f":"'Sandwiches & Apéro'!B32","v":"pro Person"},{"$f":"'Sandwiches & Apéro'!C32","v":"CHF"},{"$f":"'Sandwiches & Apéro'!D32","v":35.9},{"$f":"'Sandwiches & Apéro'!F32","v":0},{"$f":"'Sandwiches & Apéro'!G32","v":"CHF"},{"$f":"'Sandwiches & Apéro'!H32","v":0}]
[{"$f":"'Sandwiches & Apéro'!A33","v":"XL Apéro                    \t\nApéro-Sandwiches mit Rauchlachs, Rohschinken oder Brie\nWrap Antipasti Style \nSamosa mit Dip Sauce\nFischknusperli mit Sauce Tartar\nBruschetta mit Tomate und Zwiebel\nKrevetten Salat Thai Style im Glas\nSaisonale Spiesse \nHausgemachtes Mini Pana Cotta mit saisonalen Früchten  "},{"$f":"'Sandwiches & Apéro'!B33","v":"pro Person"},{"$f":"'Sandwiches & Apéro'!C33","v":"CHF"},{"$f":"'Sandwiches & Apéro'!D33","v":39},{"$f":"'Sandwiches & Apéro'!F33","v":0},{"$f":"'Sandwiches & Apéro'!G33","v":"CHF"},{"$f":"'Sandwiches & Apéro'!H33","v":0}]
[{"$f":"'Sandwiches & Apéro'!A34","v":"Sandwiches\nSandwiches ab 5 Personen bestellbar\n"},{"$f":"'Sandwiches & Apéro'!B34","v":0},{"$f":"'Sandwiches & Apéro'!C34","v":0},{"$f":"'Sandwiches & Apéro'!D34","v":0},{"$f":"'Sandwiches & Apéro'!F34","v":0},{"$f":"'Sandwiches & Apéro'!G34","v":0},{"$f":"'Sandwiches & Apéro'!H34","v":0}]
[{"$f":"'Sandwiches & Apéro'!A35","v":"Gefülltes Parisette (57cm) \nKnuspriges Parisette gefüllt mit \neiner Variation aus Schinken, Salami, Fleischkäse,\nKäse und Antipasti Gemüse"},{"$f":"'Sandwiches & Apéro'!B35","v":"pro Stück"},{"$f":"'Sandwiches & Apéro'!C35","v":"CHF"},{"$f":"'Sandwiches & Apéro'!D35","v":25.1},{"$f":"'Sandwiches & Apéro'!F35","v":0},{"$f":"'Sandwiches & Apéro'!G35","v":"CHF"},{"$f":"'Sandwiches & Apéro'!H35","v":0}]
[{"$f":"'Sandwiches & Apéro'!A36","v":"Focaccia  \t\ngefüllt mit Falafel und Hummuu, garniert mit reichlich Salat\n"},{"$f":"'Sandwiches & Apéro'!B36","v":"pro Stück"},{"$f":"'Sandwiches & Apéro'!C36","v":"CHF"},{"$f":"'Sandwiches & Apéro'!D36","v":13.9},{"$f":"'Sandwiches & Apéro'!F36","v":0},{"$f":"'Sandwiches & Apéro'!G36","v":"CHF"},{"$f":"'Sandwiches & Apéro'!H36","v":0}]
[{"$f":"'Sandwiches & Apéro'!A37","v":"Focaccia  \t\ngefüllt mit Roastbeef, Frischkäse, Salat, Tomaten, Gurken und Radieschen\n"},{"$f":"'Sandwiches & Apéro'!B37","v":"pro Stück"},{"$f":"'Sandwiches & Apéro'!C37","v":"CHF"},{"$f":"'Sandwiches & Apéro'!D37","v":13.9},{"$f":"'Sandwiches & Apéro'!F37","v":0},{"$f":"'Sandwiches & Apéro'!G37","v":"CHF"},{"$f":"'Sandwiches & Apéro'!H37","v":0}]
[{"$f":"'Sandwiches & Apéro'!A38","v":"Focaccia  \t\ngefüllt mit Pouletstreifen, Currysauce, Salat und Tomaten \n"},{"$f":"'Sandwiches & Apéro'!B38","v":"pro Stück"},{"$f":"'Sandwiches & Apéro'!C38","v":"CHF"},{"$f":"'Sandwiches & Apéro'!D38","v":13.9},{"$f":"'Sandwiches & Apéro'!F38","v":0},{"$f":"'Sandwiches & Apéro'!G38","v":"CHF"},{"$f":"'Sandwiches & Apéro'!H38","v":0}]
[{"$f":"'Sandwiches & Apéro'!A39","v":"Focaccia  \t\ngefüllt mit Tomaten, Mozzarella, Frischkäse und Basilikum"},{"$f":"'Sandwiches & Apéro'!B39","v":"pro Stück"},{"$f":"'Sandwiches & Apéro'!C39","v":"CHF"},{"$f":"'Sandwiches & Apéro'!D39","v":13.9},{"$f":"'Sandwiches & Apéro'!F39","v":0},{"$f":"'Sandwiches & Apéro'!G39","v":"CHF"},{"$f":"'Sandwiches & Apéro'!H39","v":0}]
[{"$f":"'Sandwiches & Apéro'!A40","v":"Partybrötchen de lux\n(3 Brötchen pro Person)\nVariation an Laugenbrötchen, Rusticobrötchen, Brioche und \nMini Bürli, gefüllt mit Rauchlachs, Roastbeef, Coppa, Bri und Birne"},{"$f":"'Sandwiches & Apéro'!B40","v":"pro Person"},{"$f":"'Sandwiches & Apéro'!C40","v":"CHF"},{"$f":"'Sandwiches & Apéro'!D40","v":16.899999999999999},{"$f":"'Sandwiches & Apéro'!F40","v":0},{"$f":"'Sandwiches & Apéro'!G40","v":"CHF"},{"$f":"'Sandwiches & Apéro'!H40","v":0}]
[{"$f":"'Sandwiches & Apéro'!A41","v":"Gefüllter Bagel         \t\nFrischer Bagel gefüllt mit Frischkäse auf Salatgarnitur\n"},{"$f":"'Sandwiches & Apéro'!B41","v":"pro Stück"},{"$f":"'Sandwiches & Apéro'!C41","v":"CHF"},{"$f":"'Sandwiches & Apéro'!D41","v":9.4},{"$f":"'Sandwiches & Apéro'!F41","v":0},{"$f":"'Sandwiches & Apéro'!G41","v":"CHF"},{"$f":"'Sandwiches & Apéro'!H41","v":0}]
[{"$f":"'Sandwiches & Apéro'!A42","v":"Gefüllter Bagel         \t\nFrischer Bagel gefüllt mit Eimousse auf Salatgarnitur\n"},{"$f":"'Sandwiches & Apéro'!B42","v":"pro Stück"},{"$f":"'Sandwiches & Apéro'!C42","v":"CHF"},{"$f":"'Sandwiches & Apéro'!D42","v":9.4},{"$f":"'Sandwiches & Apéro'!F42","v":0},{"$f":"'Sandwiches & Apéro'!G42","v":"CHF"},{"$f":"'Sandwiches & Apéro'!H42","v":0}]
[{"$f":"'Sandwiches & Apéro'!A43","v":"Gefüllter Bagel         \t\nFrischer Bagel gefüllt mit Tomate, Mozzarella auf Ruccola\n\n"},{"$f":"'Sandwiches & Apéro'!B43","v":"pro Stück"},{"$f":"'Sandwiches & Apéro'!C43","v":"CHF"},{"$f":"'Sandwiches & Apéro'!D43","v":9.4},{"$f":"'Sandwiches & Apéro'!F43","v":0},{"$f":"'Sandwiches & Apéro'!G43","v":"CHF"},{"$f":"'Sandwiches & Apéro'!H43","v":0}]
[{"$f":"'Sandwiches & Apéro'!A44","v":"Gefüllter Bagel         \t\nFrischer Bagel gefüllt mit Rauchlachs, Frischkäse, Meerrettich und Zwiebeln\n"},{"$f":"'Sandwiches & Apéro'!B44","v":"pro Stück"},{"$f":"'Sandwiches & Apéro'!C44","v":"CHF"},{"$f":"'Sandwiches & Apéro'!D44","v":9.4},{"$f":"'Sandwiches & Apéro'!F44","v":0},{"$f":"'Sandwiches & Apéro'!G44","v":"CHF"},{"$f":"'Sandwiches & Apéro'!H44","v":0}]
[{"$f":"'Sandwiches & Apéro'!A45","v":"Laugenstange 50cm        \t\n(reicht für ca. 6 Personen)\nFrische, lange Laugenstange \ngefüllt mit Salami, Schinken, Käse und Grillgemüse"},{"$f":"'Sandwiches & Apéro'!B45","v":"pro Person"},{"$f":"'Sandwiches & Apéro'!C45","v":"CHF"},{"$f":"'Sandwiches & Apéro'!D45","v":63.5},{"$f":"'Sandwiches & Apéro'!F45","v":0},{"$f":"'Sandwiches & Apéro'!G45","v":"CHF"},{"$f":"'Sandwiches & Apéro'!H45","v":0}]
[{"$f":"'Sandwiches & Apéro'!A46","v":"Wraps\nWraps ab 5 Personen bestellbar"},{"$f":"'Sandwiches & Apéro'!B46","v":0},{"$f":"'Sandwiches & Apéro'!C46","v":0},{"$f":"'Sandwiches & Apéro'!D46","v":0},{"$f":"'Sandwiches & Apéro'!F46","v":0},{"$f":"'Sandwiches & Apéro'!G46","v":0},{"$f":"'Sandwiches & Apéro'!H46","v":0}]
[{"$f":"'Sandwiches & Apéro'!A47","v":"Wrap Swiss Style\ngefüllt mit Vorderschinken und Emmentaler"},{"$f":"'Sandwiches & Apéro'!B47","v":"pro Person"},{"$f":"'Sandwiches & Apéro'!C47","v":"CHF"},{"$f":"'Sandwiches & Apéro'!D47","v":8},{"$f":"'Sandwiches & Apéro'!F47","v":0},{"$f":"'Sandwiches & Apéro'!G47","v":"CHF"},{"$f":"'Sandwiches & Apéro'!H47","v":0}]
[{"$f":"'Sandwiches & Apéro'!A48","v":"Wrap Italy Style\ngefüllt mit Rucola, Parmesan, Pinienkernen,\nRohschinken und getrockneten Tomaten"},{"$f":"'Sandwiches & Apéro'!B48","v":"pro Person"},{"$f":"'Sandwiches & Apéro'!C48","v":"CHF"},{"$f":"'Sandwiches & Apéro'!D48","v":14.5},{"$f":"'Sandwiches & Apéro'!F48","v":0},{"$f":"'Sandwiches & Apéro'!G48","v":"CHF"},{"$f":"'Sandwiches & Apéro'!H48","v":0}]
[{"$f":"'Sandwiches & Apéro'!A49","v":"Wrap Greek Style \ngefüllt mit Lamm, Salat, schwarzen Oliven und Tzaziki"},{"$f":"'Sandwiches & Apéro'!B49","v":"pro Person"},{"$f":"'Sandwiches & Apéro'!C49","v":"CHF"},{"$f":"'Sandwiches & Apéro'!D49","v":8.5},{"$f":"'Sandwiches & Apéro'!F49","v":0},{"$f":"'Sandwiches & Apéro'!G49","v":"CHF"},{"$f":"'Sandwiches & Apéro'!H49","v":0}]
[{"$f":"'Sandwiches & Apéro'!A50","v":"Wrap Moroccan Style\ngefüllt mit Bulgur, Hummus, Aubergine, Granatapfelkernen \nund Salat"},{"$f":"'Sandwiches & Apéro'!B50","v":"pro Person"},{"$f":"'Sandwiches & Apéro'!C50","v":"CHF"},{"$f":"'Sandwiches & Apéro'!D50","v":6.9},{"$f":"'Sandwiches & Apéro'!F50","v":0},{"$f":"'Sandwiches & Apéro'!G50","v":"CHF"},{"$f":"'Sandwiches & Apéro'!H50","v":0}]
[{"$f":"'Sandwiches & Apéro'!A51","v":"Wrap Antipasti\ngefüllt mit Antipastigemüse und Rucola"},{"$f":"'Sandwiches & Apéro'!B51","v":"pro Person"},{"$f":"'Sandwiches & Apéro'!C51","v":"CHF"},{"$f":"'Sandwiches & Apéro'!D51","v":8},{"$f":"'Sandwiches & Apéro'!F51","v":0},{"$f":"'Sandwiches & Apéro'!G51","v":"CHF"},{"$f":"'Sandwiches & Apéro'!H51","v":0}]
[{"$f":"'Sandwiches & Apéro'!A52","v":"Mini Wrap\ngefüllt mit Philadelphia, Rucola, Zuchetti, Radieschen und Karotten\n"},{"$f":"'Sandwiches & Apéro'!B52","v":"pro Person"},{"$f":"'Sandwiches & Apéro'!C52","v":"CHF"},{"$f":"'Sandwiches & Apéro'!D52","v":1.5},{"$f":"'Sandwiches & Apéro'!F52","v":0},{"$f":"'Sandwiches & Apéro'!G52","v":"CHF"},{"$f":"'Sandwiches & Apéro'!H52","v":0}]
[{"$f":"'Sandwiches & Apéro'!A53","v":"Mini Wrap\ngefüllt mit Rauchlachs, Meerrettich, Salat, Zwiebeln und Gurken\n"},{"$f":"'Sandwiches & Apéro'!B53","v":"pro Person"},{"$f":"'Sandwiches & Apéro'!C53","v":"CHF"},{"$f":"'Sandwiches & Apéro'!D53","v":2.8},{"$f":"'Sandwiches & Apéro'!F53","v":0},{"$f":"'Sandwiches & Apéro'!G53","v":"CHF"},{"$f":"'Sandwiches & Apéro'!H53","v":0}]
[{"$f":"'Sandwiches & Apéro'!A54","v":"Mini Wrap\ngefüllt mit Roastbeef, Salat, Zwiebeln, Peperoni und Senf-Mayonaise"},{"$f":"'Sandwiches & Apéro'!B54","v":"pro Person"},{"$f":"'Sandwiches & Apéro'!C54","v":"CHF"},{"$f":"'Sandwiches & Apéro'!D54","v":3.1},{"$f":"'Sandwiches & Apéro'!F54","v":0},{"$f":"'Sandwiches & Apéro'!G54","v":"CHF"},{"$f":"'Sandwiches & Apéro'!H54","v":0}]
[{"$f":"'Sandwiches & Apéro'!A55","v":"Kalte Häppchen\nKalte Häppchen ab 10 Personen bestellbar"},{"$f":"'Sandwiches & Apéro'!B55","v":0},{"$f":"'Sandwiches & Apéro'!C55","v":0},{"$f":"'Sandwiches & Apéro'!D55","v":0},{"$f":"'Sandwiches & Apéro'!F55","v":0},{"$f":"'Sandwiches & Apéro'!G55","v":0},{"$f":"'Sandwiches & Apéro'!H55","v":0}]
[{"$f":"'Sandwiches & Apéro'!A56","v":"Rohe Gemüsesticks mit Dip Sauce"},{"$f":"'Sandwiches & Apéro'!B56","v":"pro Person"},{"$f":"'Sandwiches & Apéro'!C56","v":"CHF"},{"$f":"'Sandwiches & Apéro'!D56","v":4},{"$f":"'Sandwiches & Apéro'!F56","v":0},{"$f":"'Sandwiches & Apéro'!G56","v":"CHF"},{"$f":"'Sandwiches & Apéro'!H56","v":0}]
[{"$f":"'Sandwiches & Apéro'!A57","v":"Bruschetta mit frischen Tomaten und Zwiebel"},{"$f":"'Sandwiches & Apéro'!B57","v":"pro Stück"},{"$f":"'Sandwiches & Apéro'!C57","v":"CHF"},{"$f":"'Sandwiches & Apéro'!D57","v":2.6},{"$f":"'Sandwiches & Apéro'!F57","v":0},{"$f":"'Sandwiches & Apéro'!G57","v":"CHF"},{"$f":"'Sandwiches & Apéro'!H57","v":0}]
[{"$f":"'Sandwiches & Apéro'!A58","v":"Rauchlachs auf gerösteter Toastbrotscheibe"},{"$f":"'Sandwiches & Apéro'!B58","v":"pro Stück"},{"$f":"'Sandwiches & Apéro'!C58","v":"CHF"},{"$f":"'Sandwiches & Apéro'!D58","v":3.7},{"$f":"'Sandwiches & Apéro'!F58","v":0},{"$f":"'Sandwiches & Apéro'!G58","v":"CHF"},{"$f":"'Sandwiches & Apéro'!H58","v":0}]
[{"$f":"'Sandwiches & Apéro'!A59","v":"Crevetten Cocktail im Glas"},{"$f":"'Sandwiches & Apéro'!B59","v":"pro Stück"},{"$f":"'Sandwiches & Apéro'!C59","v":"CHF"},{"$f":"'Sandwiches & Apéro'!D59","v":3.9},{"$f":"'Sandwiches & Apéro'!F59","v":0},{"$f":"'Sandwiches & Apéro'!G59","v":"CHF"},{"$f":"'Sandwiches & Apéro'!H59","v":0}]
[{"$f":"'Sandwiches & Apéro'!A60","v":"Asiatischer Gurkensalat im Glas"},{"$f":"'Sandwiches & Apéro'!B60","v":"pro Stück"},{"$f":"'Sandwiches & Apéro'!C60","v":"CHF"},{"$f":"'Sandwiches & Apéro'!D60","v":2.4},{"$f":"'Sandwiches & Apéro'!F60","v":0},{"$f":"'Sandwiches & Apéro'!G60","v":"CHF"},{"$f":"'Sandwiches & Apéro'!H60","v":0}]
[{"$f":"'Sandwiches & Apéro'!A61","v":"Zucchini-Röllchen gefüllt mit Frischkäse"},{"$f":"'Sandwiches & Apéro'!B61","v":"pro Stück"},{"$f":"'Sandwiches & Apéro'!C61","v":"CHF"},{"$f":"'Sandwiches & Apéro'!D61","v":2.8},{"$f":"'Sandwiches & Apéro'!F61","v":0},{"$f":"'Sandwiches & Apéro'!G61","v":"CHF"},{"$f":"'Sandwiches & Apéro'!H61","v":0}]
[{"$f":"'Sandwiches & Apéro'!A62","v":"Mini Pastetchen mit Frischkäsefüllung"},{"$f":"'Sandwiches & Apéro'!B62","v":"pro Stück"},{"$f":"'Sandwiches & Apéro'!C62","v":"CHF"},{"$f":"'Sandwiches & Apéro'!D62","v":2.5},{"$f":"'Sandwiches & Apéro'!F62","v":0},{"$f":"'Sandwiches & Apéro'!G62","v":"CHF"},{"$f":"'Sandwiches & Apéro'!H62","v":0}]
[{"$f":"'Sandwiches & Apéro'!A63","v":"Mini Pastetchen mit Thonmousse"},{"$f":"'Sandwiches & Apéro'!B63","v":"pro Stück"},{"$f":"'Sandwiches & Apéro'!C63","v":"CHF"},{"$f":"'Sandwiches & Apéro'!D63","v":2.5},{"$f":"'Sandwiches & Apéro'!F63","v":0},{"$f":"'Sandwiches & Apéro'!G63","v":"CHF"},{"$f":"'Sandwiches & Apéro'!H63","v":0}]
[{"$f":"'Sandwiches & Apéro'!A64","v":"Mini Pastetchen mit Rauchlachstartar"},{"$f":"'Sandwiches & Apéro'!B64","v":"pro Stück"},{"$f":"'Sandwiches & Apéro'!C64","v":"CHF"},{"$f":"'Sandwiches & Apéro'!D64","v":2.5},{"$f":"'Sandwiches & Apéro'!F64","v":0},{"$f":"'Sandwiches & Apéro'!G64","v":"CHF"},{"$f":"'Sandwiches & Apéro'!H64","v":0}]
[{"$f":"'Sandwiches & Apéro'!A65","v":"Roastbeef Röllchen mit Frischkäse"},{"$f":"'Sandwiches & Apéro'!B65","v":"pro Stück"},{"$f":"'Sandwiches & Apéro'!C65","v":"CHF"},{"$f":"'Sandwiches & Apéro'!D65","v":4.0999999999999996},{"$f":"'Sandwiches & Apéro'!F65","v":0},{"$f":"'Sandwiches & Apéro'!G65","v":"CHF"},{"$f":"'Sandwiches & Apéro'!H65","v":0}]
[{"$f":"'Sandwiches & Apéro'!A66","v":"Grisini mit Rohschinken"},{"$f":"'Sandwiches & Apéro'!B66","v":"pro Stück"},{"$f":"'Sandwiches & Apéro'!C66","v":"CHF "},{"$f":"'Sandwiches & Apéro'!D66","v":2.7},{"$f":"'Sandwiches & Apéro'!F66","v":0},{"$f":"'Sandwiches & Apéro'!G66","v":"CHF"},{"$f":"'Sandwiches & Apéro'!H66","v":0}]
[{"$f":"'Sandwiches & Apéro'!A67","v":"Mini Pita Brot mit Hummus"},{"$f":"'Sandwiches & Apéro'!B67","v":"pro Person"},{"$f":"'Sandwiches & Apéro'!C67","v":"CHF"},{"$f":"'Sandwiches & Apéro'!D67","v":2.4},{"$f":"'Sandwiches & Apéro'!F67","v":0},{"$f":"'Sandwiches & Apéro'!G67","v":"CHF"},{"$f":"'Sandwiches & Apéro'!H67","v":0}]
[{"$f":"'Sandwiches & Apéro'!A68","v":"Spiessli"},{"$f":"'Sandwiches & Apéro'!B68","v":0},{"$f":"'Sandwiches & Apéro'!C68","v":0},{"$f":"'Sandwiches & Apéro'!D68","v":0},{"$f":"'Sandwiches & Apéro'!F68","v":0},{"$f":"'Sandwiches & Apéro'!G68","v":0},{"$f":"'Sandwiches & Apéro'!H68","v":0}]
[{"$f":"'Sandwiches & Apéro'!A69","v":"Tomaten-Mozzarella "},{"$f":"'Sandwiches & Apéro'!B69","v":"pro Stück"},{"$f":"'Sandwiches & Apéro'!C69","v":"CHF"},{"$f":"'Sandwiches & Apéro'!D69","v":2.6},{"$f":"'Sandwiches & Apéro'!F69","v":0},{"$f":"'Sandwiches & Apéro'!G69","v":"CHF"},{"$f":"'Sandwiches & Apéro'!H69","v":0}]
[{"$f":"'Sandwiches & Apéro'!A70","v":"Käse-Trauben"},{"$f":"'Sandwiches & Apéro'!B70","v":"pro Stück"},{"$f":"'Sandwiches & Apéro'!C70","v":"CHF"},{"$f":"'Sandwiches & Apéro'!D70","v":2.6},{"$f":"'Sandwiches & Apéro'!F70","v":0},{"$f":"'Sandwiches & Apéro'!G70","v":"CHF"},{"$f":"'Sandwiches & Apéro'!H70","v":0}]
[{"$f":"'Sandwiches & Apéro'!A71","v":"Feigen-Brie"},{"$f":"'Sandwiches & Apéro'!B71","v":"pro Stück"},{"$f":"'Sandwiches & Apéro'!C71","v":"CHF"},{"$f":"'Sandwiches & Apéro'!D71","v":3.7},{"$f":"'Sandwiches & Apéro'!F71","v":0},{"$f":"'Sandwiches & Apéro'!G71","v":"CHF"},{"$f":"'Sandwiches & Apéro'!H71","v":0}]
[{"$f":"'Sandwiches & Apéro'!A72","v":"Saisonale Früchte  "},{"$f":"'Sandwiches & Apéro'!B72","v":"pro Stück"},{"$f":"'Sandwiches & Apéro'!C72","v":"CHF"},{"$f":"'Sandwiches & Apéro'!D72","v":1},{"$f":"'Sandwiches & Apéro'!F72","v":0},{"$f":"'Sandwiches & Apéro'!G72","v":"CHF"},{"$f":"'Sandwiches & Apéro'!H72","v":0}]
[{"$f":"'Sandwiches & Apéro'!A73","v":"Antipasti "},{"$f":"'Sandwiches & Apéro'!B73","v":"pro Stück"},{"$f":"'Sandwiches & Apéro'!C73","v":"CHF"},{"$f":"'Sandwiches & Apéro'!D73","v":7.3},{"$f":"'Sandwiches & Apéro'!F73","v":0},{"$f":"'Sandwiches & Apéro'!G73","v":"CHF"},{"$f":"'Sandwiches & Apéro'!H73","v":0}]
[{"$f":"'Sandwiches & Apéro'!A74","v":"Melone-Rohschinken  "},{"$f":"'Sandwiches & Apéro'!B74","v":"pro Stück"},{"$f":"'Sandwiches & Apéro'!C74","v":"CHF"},{"$f":"'Sandwiches & Apéro'!D74","v":2.6},{"$f":"'Sandwiches & Apéro'!F74","v":0},{"$f":"'Sandwiches & Apéro'!G74","v":"CHF"},{"$f":"'Sandwiches & Apéro'!H74","v":0}]
[{"$f":"'Sandwiches & Apéro'!A75","v":"Platten\nApéro Platten ab 5 Personen bestellbar"},{"$f":"'Sandwiches & Apéro'!B75","v":0},{"$f":"'Sandwiches & Apéro'!C75","v":0},{"$f":"'Sandwiches & Apéro'!D75","v":0},{"$f":"'Sandwiches & Apéro'!F75","v":0},{"$f":"'Sandwiches & Apéro'!G75","v":0},{"$f":"'Sandwiches & Apéro'!H75","v":0}]
[{"$f":"'Sandwiches & Apéro'!A76","v":"Käse Platte    \n(100g Käse pro Person)\nVerschiedene Sorten an Hart- und Weichkäse\ngarniert mit Trauben und Walnüssen\ndazu servieren wir Ihnen frisches Nussbrot"},{"$f":"'Sandwiches & Apéro'!B76","v":"pro Person"},{"$f":"'Sandwiches & Apéro'!C76","v":"CHF"},{"$f":"'Sandwiches & Apéro'!D76","v":12.2},{"$f":"'Sandwiches & Apéro'!F76","v":0},{"$f":"'Sandwiches & Apéro'!G76","v":"CHF"},{"$f":"'Sandwiches & Apéro'!H76","v":0}]
[{"$f":"'Sandwiches & Apéro'!A77","v":"Fleisch Platte \n(100g Fleisch pro Person)\nTrockenfleisch, Rohschinken, Speck, Salami, Aufschnitt\ngarniert mit Essiggurken, Silberzwiebeln und Tomaten\ndazu servieren wir Ihnen frisches Brot\n"},{"$f":"'Sandwiches & Apéro'!B77","v":"pro Person"},{"$f":"'Sandwiches & Apéro'!C77","v":"CHF"},{"$f":"'Sandwiches & Apéro'!D77","v":12.4},{"$f":"'Sandwiches & Apéro'!F77","v":0},{"$f":"'Sandwiches & Apéro'!G77","v":"CHF"},{"$f":"'Sandwiches & Apéro'!H77","v":0}]
[{"$f":"'Sandwiches & Apéro'!A78","v":"Vegane Platte     \n(200g pro Person)\nPita Brot mit Hummus, Edamame, Oliven, Dörrtomaten und Falafel"},{"$f":"'Sandwiches & Apéro'!B78","v":"pro Person"},{"$f":"'Sandwiches & Apéro'!C78","v":"CHF"},{"$f":"'Sandwiches & Apéro'!D78","v":11},{"$f":"'Sandwiches & Apéro'!F78","v":0},{"$f":"'Sandwiches & Apéro'!G78","v":"CHF"},{"$f":"'Sandwiches & Apéro'!H78","v":0}]
[{"$f":"'Sandwiches & Apéro'!A79","v":"Mediterane Platte \n(250g pro Person)\nMariniertes, gegrilltes Gemüse, \ngefüllte Peperoni, Oliven, Feta oder Parmesan\ndazu servieren wir Ihnen ofenfrisches Focacciabrot"},{"$f":"'Sandwiches & Apéro'!B79","v":"pro Person"},{"$f":"'Sandwiches & Apéro'!C79","v":"CHF"},{"$f":"'Sandwiches & Apéro'!D79","v":27.6},{"$f":"'Sandwiches & Apéro'!F79","v":0},{"$f":"'Sandwiches & Apéro'!G79","v":"CHF"},{"$f":"'Sandwiches & Apéro'!H79","v":0}]
[{"$f":"'Sandwiches & Apéro'!A80","v":"Warme Häppchen\nWarme Häppchen ab 10 Personen bestellbar "},{"$f":"'Sandwiches & Apéro'!B80","v":0},{"$f":"'Sandwiches & Apéro'!C80","v":0},{"$f":"'Sandwiches & Apéro'!D80","v":0},{"$f":"'Sandwiches & Apéro'!F80","v":0},{"$f":"'Sandwiches & Apéro'!G80","v":0},{"$f":"'Sandwiches & Apéro'!H80","v":0}]
[{"$f":"'Sandwiches & Apéro'!A81","v":"Gemüse-Frühlingsrolle"},{"$f":"'Sandwiches & Apéro'!B81","v":"pro Stück"},{"$f":"'Sandwiches & Apéro'!C81","v":"CHF"},{"$f":"'Sandwiches & Apéro'!D81","v":2.5},{"$f":"'Sandwiches & Apéro'!F81","v":0},{"$f":"'Sandwiches & Apéro'!G81","v":"CHF"},{"$f":"'Sandwiches & Apéro'!H81","v":0}]
[{"$f":"'Sandwiches & Apéro'!A82","v":"Chäschüechli"},{"$f":"'Sandwiches & Apéro'!B82","v":"pro Stück"},{"$f":"'Sandwiches & Apéro'!C82","v":"CHF"},{"$f":"'Sandwiches & Apéro'!D82","v":2.5},{"$f":"'Sandwiches & Apéro'!F82","v":0},{"$f":"'Sandwiches & Apéro'!G82","v":"CHF"},{"$f":"'Sandwiches & Apéro'!H82","v":0}]
[{"$f":"'Sandwiches & Apéro'!A83","v":"Poulet-Satay Spiessli"},{"$f":"'Sandwiches & Apéro'!B83","v":"pro Stück"},{"$f":"'Sandwiches & Apéro'!C83","v":"CHF"},{"$f":"'Sandwiches & Apéro'!D83","v":3.7},{"$f":"'Sandwiches & Apéro'!F83","v":0},{"$f":"'Sandwiches & Apéro'!G83","v":"CHF"},{"$f":"'Sandwiches & Apéro'!H83","v":0}]
[{"$f":"'Sandwiches & Apéro'!A84","v":"Schinkengipfel"},{"$f":"'Sandwiches & Apéro'!B84","v":"pro Stück"},{"$f":"'Sandwiches & Apéro'!C84","v":"CHF"},{"$f":"'Sandwiches & Apéro'!D84","v":2.5},{"$f":"'Sandwiches & Apéro'!F84","v":0},{"$f":"'Sandwiches & Apéro'!G84","v":"CHF"},{"$f":"'Sandwiches & Apéro'!H84","v":0}]
[{"$f":"'Sandwiches & Apéro'!A85","v":"Mini Pizza "},{"$f":"'Sandwiches & Apéro'!B85","v":"pro Stück"},{"$f":"'Sandwiches & Apéro'!C85","v":"CHF"},{"$f":"'Sandwiches & Apéro'!D85","v":2.5},{"$f":"'Sandwiches & Apéro'!F85","v":0},{"$f":"'Sandwiches & Apéro'!G85","v":"CHF"},{"$f":"'Sandwiches & Apéro'!H85","v":0}]
[{"$f":"'Sandwiches & Apéro'!A86","v":"Fisch-Knusperli mit Sauce Tartar"},{"$f":"'Sandwiches & Apéro'!B86","v":"pro Person"},{"$f":"'Sandwiches & Apéro'!C86","v":"CHF"},{"$f":"'Sandwiches & Apéro'!D86","v":9.5},{"$f":"'Sandwiches & Apéro'!F86","v":0},{"$f":"'Sandwiches & Apéro'!G86","v":"CHF"},{"$f":"'Sandwiches & Apéro'!H86","v":0}]
[{"$f":"'Sandwiches & Apéro'!A87","v":"Crevetten Spiessli"},{"$f":"'Sandwiches & Apéro'!B87","v":"pro Stück"},{"$f":"'Sandwiches & Apéro'!C87","v":"CHF"},{"$f":"'Sandwiches & Apéro'!D87","v":4},{"$f":"'Sandwiches & Apéro'!F87","v":0},{"$f":"'Sandwiches & Apéro'!G87","v":"CHF"},{"$f":"'Sandwiches & Apéro'!H87","v":0}]
[{"$f":"'Sandwiches & Apéro'!A88","v":"Gebackene Shrimps mit Dip Sauce "},{"$f":"'Sandwiches & Apéro'!B88","v":"pro Stück"},{"$f":"'Sandwiches & Apéro'!C88","v":"CHF"},{"$f":"'Sandwiches & Apéro'!D88","v":6.3},{"$f":"'Sandwiches & Apéro'!F88","v":0},{"$f":"'Sandwiches & Apéro'!G88","v":"CHF"},{"$f":"'Sandwiches & Apéro'!H88","v":0}]
[{"$f":"'Sandwiches & Apéro'!A89","v":"Speckbrot überbacken mit Raclette Käse "},{"$f":"'Sandwiches & Apéro'!B89","v":"pro Stück"},{"$f":"'Sandwiches & Apéro'!C89","v":"CHF"},{"$f":"'Sandwiches & Apéro'!D89","v":3.5},{"$f":"'Sandwiches & Apéro'!F89","v":0},{"$f":"'Sandwiches & Apéro'!G89","v":"CHF"},{"$f":"'Sandwiches & Apéro'!H89","v":0}]
[{"$f":"'Sandwiches & Apéro'!A90","v":"Chicken Nuggets mit Dip Sauce"},{"$f":"'Sandwiches & Apéro'!B90","v":"pro Stück"},{"$f":"'Sandwiches & Apéro'!C90","v":"CHF"},{"$f":"'Sandwiches & Apéro'!D90","v":7},{"$f":"'Sandwiches & Apéro'!F90","v":0},{"$f":"'Sandwiches & Apéro'!G90","v":"CHF"},{"$f":"'Sandwiches & Apéro'!H90","v":0}]
[{"$f":"'Sandwiches & Apéro'!A91","v":"Mini Hot Dog"},{"$f":"'Sandwiches & Apéro'!B91","v":"pro Stück"},{"$f":"'Sandwiches & Apéro'!C91","v":"CHF"},{"$f":"'Sandwiches & Apéro'!D91","v":1.5},{"$f":"'Sandwiches & Apéro'!F91","v":0},{"$f":"'Sandwiches & Apéro'!G91","v":"CHF"},{"$f":"'Sandwiches & Apéro'!H91","v":0}]
[{"$f":"'Sandwiches & Apéro'!A92","v":"Hot Jalapenos mit Sauerrahm Dip"},{"$f":"'Sandwiches & Apéro'!B92","v":"pro Stück"},{"$f":"'Sandwiches & Apéro'!C92","v":"CHF"},{"$f":"'Sandwiches & Apéro'!D92","v":2.5},{"$f":"'Sandwiches & Apéro'!F92","v":0},{"$f":"'Sandwiches & Apéro'!G92","v":"CHF"},{"$f":"'Sandwiches & Apéro'!H92","v":0}]
[{"$f":"'Sandwiches & Apéro'!A93","v":"Dattel im Speckmantel"},{"$f":"'Sandwiches & Apéro'!B93","v":"pro Stück"},{"$f":"'Sandwiches & Apéro'!C93","v":"CHF "},{"$f":"'Sandwiches & Apéro'!D93","v":1.5},{"$f":"'Sandwiches & Apéro'!F93","v":0},{"$f":"'Sandwiches & Apéro'!G93","v":"CHF"},{"$f":"'Sandwiches & Apéro'!H93","v":0}]
[{"$f":"'Sandwiches & Apéro'!A94","v":"Quesadillas (Käse-Chili Füllung)"},{"$f":"'Sandwiches & Apéro'!B94","v":"pro Person"},{"$f":"'Sandwiches & Apéro'!C94","v":"CHF"},{"$f":"'Sandwiches & Apéro'!D94","v":2.5},{"$f":"'Sandwiches & Apéro'!F94","v":0},{"$f":"'Sandwiches & Apéro'!G94","v":"CHF"},{"$f":"'Sandwiches & Apéro'!H94","v":0}]
[{"$f":"'Sandwiches & Apéro'!A95","v":"Schnitzelbrot mit Tartarsauce"},{"$f":"'Sandwiches & Apéro'!B95","v":"pro Stück"},{"$f":"'Sandwiches & Apéro'!C95","v":"CHF"},{"$f":"'Sandwiches & Apéro'!D95","v":6.9},{"$f":"'Sandwiches & Apéro'!F95","v":0},{"$f":"'Sandwiches & Apéro'!G95","v":"CHF"},{"$f":"'Sandwiches & Apéro'!H95","v":0}]
[{"$f":"'Sandwiches & Apéro'!A96","v":"Snacks"},{"$f":"'Sandwiches & Apéro'!B96","v":0},{"$f":"'Sandwiches & Apéro'!C96","v":0},{"$f":"'Sandwiches & Apéro'!D96","v":0},{"$f":"'Sandwiches & Apéro'!F96","v":0},{"$f":"'Sandwiches & Apéro'!G96","v":0},{"$f":"'Sandwiches & Apéro'!H96","v":0}]
[{"$f":"'Sandwiches & Apéro'!A97","v":"Kartoffelchips Paprik"},{"$f":"'Sandwiches & Apéro'!B97","v":"pro Person"},{"$f":"'Sandwiches & Apéro'!C97","v":"CHF"},{"$f":"'Sandwiches & Apéro'!D97","v":1.8},{"$f":"'Sandwiches & Apéro'!F97","v":0},{"$f":"'Sandwiches & Apéro'!G97","v":"CHF"},{"$f":"'Sandwiches & Apéro'!H97","v":0}]
[{"$f":"'Sandwiches & Apéro'!A98","v":"Kartoffelchips Salz"},{"$f":"'Sandwiches & Apéro'!B98","v":"pro Person"},{"$f":"'Sandwiches & Apéro'!C98","v":"CHF"},{"$f":"'Sandwiches & Apéro'!D98","v":1.8},{"$f":"'Sandwiches & Apéro'!F98","v":0},{"$f":"'Sandwiches & Apéro'!G98","v":"CHF"},{"$f":"'Sandwiches & Apéro'!H98","v":0}]
[{"$f":"'Sandwiches & Apéro'!A99","v":"Gemüsechips"},{"$f":"'Sandwiches & Apéro'!B99","v":"pro Person"},{"$f":"'Sandwiches & Apéro'!C99","v":"CHF"},{"$f":"'Sandwiches & Apéro'!D99","v":3.7},{"$f":"'Sandwiches & Apéro'!F99","v":0},{"$f":"'Sandwiches & Apéro'!G99","v":"CHF"},{"$f":"'Sandwiches & Apéro'!H99","v":0}]
[{"$f":"'Sandwiches & Apéro'!A100","v":"Salznüssli"},{"$f":"'Sandwiches & Apéro'!B100","v":"pro Person"},{"$f":"'Sandwiches & Apéro'!C100","v":"CHF"},{"$f":"'Sandwiches & Apéro'!D100","v":0.8},{"$f":"'Sandwiches & Apéro'!F100","v":0},{"$f":"'Sandwiches & Apéro'!G100","v":"CHF"},{"$f":"'Sandwiches & Apéro'!H100","v":0}]
[{"$f":"'Sandwiches & Apéro'!A101","v":"Salzstängeli"},{"$f":"'Sandwiches & Apéro'!B101","v":"pro Person"},{"$f":"'Sandwiches & Apéro'!C101","v":"CHF"},{"$f":"'Sandwiches & Apéro'!D101","v":1.3},{"$f":"'Sandwiches & Apéro'!F101","v":0},{"$f":"'Sandwiches & Apéro'!G101","v":"CHF"},{"$f":"'Sandwiches & Apéro'!H101","v":0}]
[{"$f":"'Sandwiches & Apéro'!A102","v":"Nachos mit Guacamole "},{"$f":"'Sandwiches & Apéro'!B102","v":"pro Person"},{"$f":"'Sandwiches & Apéro'!C102","v":"CHF"},{"$f":"'Sandwiches & Apéro'!D102","v":1.4},{"$f":"'Sandwiches & Apéro'!F102","v":0},{"$f":"'Sandwiches & Apéro'!G102","v":"CHF"},{"$f":"'Sandwiches & Apéro'!H102","v":0}]
[{"$f":"'Sandwiches & Apéro'!A103","v":"Nachos mit Salsa Dip "},{"$f":"'Sandwiches & Apéro'!B103","v":"pro Person"},{"$f":"'Sandwiches & Apéro'!C103","v":"CHF"},{"$f":"'Sandwiches & Apéro'!D103","v":1.4},{"$f":"'Sandwiches & Apéro'!F103","v":0},{"$f":"'Sandwiches & Apéro'!G103","v":"CHF"},{"$f":"'Sandwiches & Apéro'!H103","v":0}]
[{"$f":"'Sandwiches & Apéro'!A104","v":"Marinierte Oliven "},{"$f":"'Sandwiches & Apéro'!B104","v":"pro Person"},{"$f":"'Sandwiches & Apéro'!C104","v":"CHF"},{"$f":"'Sandwiches & Apéro'!D104","v":10.5},{"$f":"'Sandwiches & Apéro'!F104","v":0},{"$f":"'Sandwiches & Apéro'!G104","v":"CHF"},{"$f":"'Sandwiches & Apéro'!H104","v":0}]
[{"$f":"'Sandwiches & Apéro'!A105","v":"Geröstete Nüsse"},{"$f":"'Sandwiches & Apéro'!B105","v":"pro Person"},{"$f":"'Sandwiches & Apéro'!C105","v":"CHF"},{"$f":"'Sandwiches & Apéro'!D105","v":15},{"$f":"'Sandwiches & Apéro'!F105","v":0},{"$f":"'Sandwiches & Apéro'!G105","v":"CHF"},{"$f":"'Sandwiches & Apéro'!H105","v":0}]
[{"$f":"'Sandwiches & Apéro'!A106","v":"Parmesanmöckli"},{"$f":"'Sandwiches & Apéro'!B106","v":"pro Person"},{"$f":"'Sandwiches & Apéro'!C106","v":"CHF"},{"$f":"'Sandwiches & Apéro'!D106","v":8.5},{"$f":"'Sandwiches & Apéro'!F106","v":0},{"$f":"'Sandwiches & Apéro'!G106","v":"CHF"},{"$f":"'Sandwiches & Apéro'!H106","v":0}]
[{"$f":"'Sandwiches & Apéro'!A107","v":"Marinierte Fetawürfel"},{"$f":"'Sandwiches & Apéro'!B107","v":"pro Person"},{"$f":"'Sandwiches & Apéro'!C107","v":"CHF"},{"$f":"'Sandwiches & Apéro'!D107","v":2.7},{"$f":"'Sandwiches & Apéro'!F107","v":0},{"$f":"'Sandwiches & Apéro'!G107","v":"CHF"},{"$f":"'Sandwiches & Apéro'!H107","v":0}]
[{"$f":"'Sandwiches & Apéro'!A108","v":"Around the World"},{"$f":"'Sandwiches & Apéro'!B108","v":0},{"$f":"'Sandwiches & Apéro'!C108","v":0},{"$f":"'Sandwiches & Apéro'!D108","v":0},{"$f":"'Sandwiches & Apéro'!F108","v":0},{"$f":"'Sandwiches & Apéro'!G108","v":0},{"$f":"'Sandwiches & Apéro'!H108","v":0}]
[{"$f":"'Sandwiches & Apéro'!A109","v":"Gerne offerieren wir Ihnen ein massgeschneidertes Angebot in dem wir Ihnen Speisen rund um den Globus zusammenstellen. \nGanz nach Ihrem Geschmack stellen wir verschiedene Speisen auch für \nAllergiker oder spezielle Themen-Events zusammen.\t                                                            Lieferbar ab 15 Personen\n\nPreis je nach gewünschten Speisen auf Anfrage"},{"$f":"'Sandwiches & Apéro'!B109","v":0},{"$f":"'Sandwiches & Apéro'!C109","v":0},{"$f":"'Sandwiches & Apéro'!D109","v":0},{"$f":"'Sandwiches & Apéro'!F109","v":0},{"$f":"'Sandwiches & Apéro'!G109","v":0},{"$f":"'Sandwiches & Apéro'!H109","v":0}]
[{"$f":"Lunch!A8","v":"Einfacher Lunch\nSandwich gefüllt mit Schinken\nSaisonale Frucht  \nSchoggiriegel "},{"$f":"Lunch!B8","v":"pro Person"},{"$f":"Lunch!C8","v":"CHF"},{"$f":"Lunch!D8","v":15.6},{"$f":"Lunch!F8","v":0},{"$f":"Lunch!G8","v":"CHF"},{"$f":"Lunch!H8","v":0}]
[{"$f":"Lunch!A9","v":"Einfacher Lunch\nSandwich gefüllt mit Salami\nSaisonale Frucht  \nSchoggiriegel "},{"$f":"Lunch!B9","v":"pro Person"},{"$f":"Lunch!C9","v":"CHF"},{"$f":"Lunch!D9","v":15.6},{"$f":"Lunch!F9","v":0},{"$f":"Lunch!G9","v":"CHF"},{"$f":"Lunch!H9","v":0}]
[{"$f":"Lunch!A10","v":"Einfacher Lunch\nSandwich gefüllt mit Käse\nSaisonale Frucht  \nSchoggiriegel "},{"$f":"Lunch!B10","v":"pro Person"},{"$f":"Lunch!C10","v":"CHF"},{"$f":"Lunch!D10","v":15.6},{"$f":"Lunch!F10","v":0},{"$f":"Lunch!G10","v":"CHF"},{"$f":"Lunch!H10","v":0}]
[{"$f":"Lunch!A11","v":"Swiss Lunch\nPartybrötli mit Bündnerfleisch \nHörnlisalat \nKalte Platte (Käse- und Fleisch gemischt) mit Nussbrot\nSaisonaler Fruchtspiess\nLindor Kugel"},{"$f":"Lunch!B11","v":"pro Person"},{"$f":"Lunch!C11","v":"CHF"},{"$f":"Lunch!D11","v":15.6},{"$f":"Lunch!F11","v":0},{"$f":"Lunch!G11","v":"CHF"},{"$f":"Lunch!H11","v":0}]
[{"$f":"Lunch!A12","v":"Swiss Lunch\nPartybrötli mit Schweizer Käse\nHörnlisalat \nKalte Platte (Käse- und Fleisch gemischt) mit Nussbrot\nSaisonaler Fruchtspiess\nLindor Kugel"},{"$f":"Lunch!B12","v":"pro Person"},{"$f":"Lunch!C12","v":"CHF"},{"$f":"Lunch!D12","v":15.6},{"$f":"Lunch!F12","v":0},{"$f":"Lunch!G12","v":"CHF"},{"$f":"Lunch!H12","v":0}]
[{"$f":"Lunch!A13","v":"Vital Lunch\nProteinbrötli mit Hüttenkäse, Avocado und Kresse\nMini Wrap mit Frischkäse\nGemischter Salat mit Balsamico Dressing\nMüsliriegel\nJogurt mit saisonalen Früchten   "},{"$f":"Lunch!B13","v":"pro Person"},{"$f":"Lunch!C13","v":"CHF"},{"$f":"Lunch!D13","v":26.2},{"$f":"Lunch!F13","v":0},{"$f":"Lunch!G13","v":"CHF"},{"$f":"Lunch!H13","v":0}]
[{"$f":"Lunch!A14","v":"Mediterranean Lunch \nFocaccia gefüllt mit Antipasti Gemüse, Rucola und \nParmaschinken\nGriechischer Salat mit Oliven und Feta\nFruchtspiess  \nDessert der Saison"},{"$f":"Lunch!B14","v":"pro Person"},{"$f":"Lunch!C14","v":"CHF"},{"$f":"Lunch!D14","v":19.2},{"$f":"Lunch!F14","v":0},{"$f":"Lunch!G14","v":"CHF"},{"$f":"Lunch!H14","v":0}]
[{"$f":"Lunch!A15","v":"French Lunch \nMini Sandwiches mit dunklem und hellem Baguette \ngefüllt mit Rohschinken und Brie\nRatatouillesalat mit Ziegenkäse\nMini Quiche mit Käse oder Gemüse\nSaisonaler Fruchtsalat  \nAssortierte Mini Patisserie"},{"$f":"Lunch!B15","v":"pro Person"},{"$f":"Lunch!C15","v":"CHF"},{"$f":"Lunch!D15","v":24},{"$f":"Lunch!F15","v":0},{"$f":"Lunch!G15","v":"CHF"},{"$f":"Lunch!H15","v":0}]
[{"$f":"Lunch!A16","v":"Salat im Glas"},{"$f":"Lunch!B16","v":0},{"$f":"Lunch!C16","v":0},{"$f":"Lunch!D16","v":0},{"$f":"Lunch!F16","v":0},{"$f":"Lunch!G16","v":0},{"$f":"Lunch!H16","v":0}]
[{"$f":"Lunch!A17","v":"Gemischter Saisonsalat mit Kernen & Nüssen  "},{"$f":"Lunch!B17","v":"pro Stück"},{"$f":"Lunch!C17","v":"CHF"},{"$f":"Lunch!D17","v":2.5},{"$f":"Lunch!F17","v":0},{"$f":"Lunch!G17","v":"CHF"},{"$f":"Lunch!H17","v":0}]
[{"$f":"Lunch!A18","v":"Griechischer Salat"},{"$f":"Lunch!B18","v":"pro Stück"},{"$f":"Lunch!C18","v":"CHF"},{"$f":"Lunch!D18","v":2.5},{"$f":"Lunch!F18","v":0},{"$f":"Lunch!G18","v":"CHF"},{"$f":"Lunch!H18","v":0}]
[{"$f":"Lunch!A19","v":"Quinoa Salat mit Feta und Avocado "},{"$f":"Lunch!B19","v":"pro Stück"},{"$f":"Lunch!C19","v":"CHF"},{"$f":"Lunch!D19","v":3.2},{"$f":"Lunch!F19","v":0},{"$f":"Lunch!G19","v":"CHF"},{"$f":"Lunch!H19","v":0}]
[{"$f":"Lunch!A20","v":"Linsensalat mit Rauchlachs "},{"$f":"Lunch!B20","v":"pro Stück"},{"$f":"Lunch!C20","v":"CHF"},{"$f":"Lunch!D20","v":2},{"$f":"Lunch!F20","v":0},{"$f":"Lunch!G20","v":"CHF"},{"$f":"Lunch!H20","v":0}]
[{"$f":"Lunch!A21","v":"Waldorf Salat"},{"$f":"Lunch!B21","v":"pro Stück"},{"$f":"Lunch!C21","v":"CHF"},{"$f":"Lunch!D21","v":2.8},{"$f":"Lunch!F21","v":0},{"$f":"Lunch!G21","v":"CHF"},{"$f":"Lunch!H21","v":0}]
[{"$f":"Lunch!A22","v":"Wurst-Käse Salat"},{"$f":"Lunch!B22","v":"pro Stück"},{"$f":"Lunch!C22","v":"CHF"},{"$f":"Lunch!D22","v":3.7},{"$f":"Lunch!F22","v":0},{"$f":"Lunch!G22","v":"CHF"},{"$f":"Lunch!H22","v":0}]
[{"$f":"Lunch!A23","v":"Gurkensalat mit Dill"},{"$f":"Lunch!B23","v":"pro Stück"},{"$f":"Lunch!C23","v":"CHF"},{"$f":"Lunch!D23","v":1.5},{"$f":"Lunch!F23","v":0},{"$f":"Lunch!G23","v":"CHF"},{"$f":"Lunch!H23","v":0}]
[{"$f":"Lunch!A24","v":"Ceasar Salat mit Speck und Croutons"},{"$f":"Lunch!B24","v":"pro Stück"},{"$f":"Lunch!C24","v":"CHF"},{"$f":"Lunch!D24","v":4.2},{"$f":"Lunch!F24","v":0},{"$f":"Lunch!G24","v":"CHF"},{"$f":"Lunch!H24","v":0}]
[{"$f":"Lunch!A25","v":"Asiatischer Glasnudelsalat mit Cashew Nüssen"},{"$f":"Lunch!B25","v":"pro Stück"},{"$f":"Lunch!C25","v":"CHF"},{"$f":"Lunch!D25","v":4.5},{"$f":"Lunch!F25","v":0},{"$f":"Lunch!G25","v":"CHF"},{"$f":"Lunch!H25","v":0}]
[{"$f":"Lunch!A26","v":"Poulet Tandoori Salat mit Jogurt und Minze "},{"$f":"Lunch!B26","v":"pro Stück"},{"$f":"Lunch!C26","v":"CHF"},{"$f":"Lunch!D26","v":4},{"$f":"Lunch!F26","v":0},{"$f":"Lunch!G26","v":"CHF"},{"$f":"Lunch!H26","v":0}]
[{"$f":"Lunch!A27","v":"Avocado Salat mit Mango und Chili"},{"$f":"Lunch!B27","v":"pro Stück"},{"$f":"Lunch!C27","v":"CHF"},{"$f":"Lunch!D27","v":3.6},{"$f":"Lunch!F27","v":0},{"$f":"Lunch!G27","v":"CHF"},{"$f":"Lunch!H27","v":0}]
[{"$f":"Lunch!A28","v":"Taboulée Salat mit Minze"},{"$f":"Lunch!B28","v":"pro Stück"},{"$f":"Lunch!C28","v":"CHF"},{"$f":"Lunch!D28","v":4.5999999999999996},{"$f":"Lunch!F28","v":0},{"$f":"Lunch!G28","v":"CHF"},{"$f":"Lunch!H28","v":0}]
[{"$f":"Lunch!A29","v":"Crevetten Salat Thai Style mit Chili, Limetten und Koriander"},{"$f":"Lunch!B29","v":"pro Stück"},{"$f":"Lunch!C29","v":"CHF"},{"$f":"Lunch!D29","v":6.7},{"$f":"Lunch!F29","v":0},{"$f":"Lunch!G29","v":"CHF"},{"$f":"Lunch!H29","v":0}]
[{"$f":"Lunch!A30","v":"Suppen im Weck-Glas\nab 10 Personen bestellbar"},{"$f":"Lunch!B30","v":0},{"$f":"Lunch!C30","v":0},{"$f":"Lunch!D30","v":0},{"$f":"Lunch!F30","v":0},{"$f":"Lunch!G30","v":0},{"$f":"Lunch!H30","v":0}]
[{"$f":"Lunch!A31","v":"Kalte Gazpacho"},{"$f":"Lunch!B31","v":"pro Person"},{"$f":"Lunch!C31","v":"CHF"},{"$f":"Lunch!D31","v":4},{"$f":"Lunch!F31","v":0},{"$f":"Lunch!G31","v":"CHF"},{"$f":"Lunch!H31","v":0}]
[{"$f":"Lunch!A32","v":"Tomatensuppe mit Sahne Häubchen"},{"$f":"Lunch!B32","v":"pro Person"},{"$f":"Lunch!C32","v":"CHF"},{"$f":"Lunch!D32","v":4},{"$f":"Lunch!F32","v":0},{"$f":"Lunch!G32","v":"CHF"},{"$f":"Lunch!H32","v":0}]
[{"$f":"Lunch!A33","v":"Kalte Avocado-Kokossuppe"},{"$f":"Lunch!B33","v":"pro Person"},{"$f":"Lunch!C33","v":"CHF"},{"$f":"Lunch!D33","v":4},{"$f":"Lunch!F33","v":0},{"$f":"Lunch!G33","v":"CHF"},{"$f":"Lunch!H33","v":0}]
[{"$f":"Lunch!A34","v":"Linsen-Ingwer Suppe mit Apfelwürfel"},{"$f":"Lunch!B34","v":"pro Person"},{"$f":"Lunch!C34","v":"CHF"},{"$f":"Lunch!D34","v":4},{"$f":"Lunch!F34","v":0},{"$f":"Lunch!G34","v":"CHF"},{"$f":"Lunch!H34","v":0}]
[{"$f":"Lunch!A35","v":"Red Thai Currysoup"},{"$f":"Lunch!B35","v":"pro Person"},{"$f":"Lunch!C35","v":"CHF"},{"$f":"Lunch!D35","v":4},{"$f":"Lunch!F35","v":0},{"$f":"Lunch!G35","v":"CHF"},{"$f":"Lunch!H35","v":0}]
[{"$f":"Lunch!A36","v":"Lunch warm\nab 10 Personen bestellbar"},{"$f":"Lunch!B36","v":0},{"$f":"Lunch!C36","v":0},{"$f":"Lunch!D36","v":0},{"$f":"Lunch!F36","v":0},{"$f":"Lunch!G36","v":0},{"$f":"Lunch!H36","v":0}]
[{"$f":"Lunch!A37","v":"Tapas Lunchpaket\nAlbondigas\nPatatas Bravas\nQuesadillas (Käse-Chili Füllung)\nDatteln im Speckmantel\nTortilla"},{"$f":"Lunch!B37","v":"pro Person"},{"$f":"Lunch!C37","v":"CHF"},{"$f":"Lunch!D37","v":15},{"$f":"Lunch!F37","v":0},{"$f":"Lunch!G37","v":"CHF"},{"$f":"Lunch!H37","v":0}]
[{"$f":"Lunch!A38","v":"Streetfood Lunch \nPulled Pork Mini Burger\nPotato Wedges pikant gewürzt\nAmerican Hot Dog\nFish Fingers\nFocaccia mit Falafel und Tzaziki gefüllt"},{"$f":"Lunch!B38","v":"pro Person"},{"$f":"Lunch!C38","v":"CHF"},{"$f":"Lunch!D38","v":18.5},{"$f":"Lunch!F38","v":0},{"$f":"Lunch!G38","v":"CHF"},{"$f":"Lunch!H38","v":0}]
[{"$f":"Lunch!A39","v":"Pasta Plausch \nZweierlei Pasta mit zwei Saucen\nBolognese-, Carbonara-, Napoli- oder Pesto Sauce\nDazu geriebener Parmesan"},{"$f":"Lunch!B39","v":"pro Person"},{"$f":"Lunch!C39","v":"CHF"},{"$f":"Lunch!D39","v":12.5},{"$f":"Lunch!F39","v":0},{"$f":"Lunch!G39","v":"CHF"},{"$f":"Lunch!H39","v":0}]
[{"$f":"Lunch!A40","v":"Tagesmenu aus dem Restaurant"},{"$f":"Lunch!B40","v":"pro Person"},{"$f":"Lunch!C40","v":"CHF"},{"$f":"Lunch!D40","v":12.5},{"$f":"Lunch!F40","v":0},{"$f":"Lunch!G40","v":"CHF"},{"$f":"Lunch!H40","v":0}]
[{"$f":"Dessert!A7","v":"Saisonales Tagesdessert im Glas   "},{"$f":"Dessert!B7","v":"pro Stück"},{"$f":"Dessert!C7","v":"CHF"},{"$f":"Dessert!D7","v":1.8},{"$f":"Dessert!F7","v":0},{"$f":"Dessert!G7","v":"CHF"},{"$f":"Dessert!H7","v":0}]
[{"$f":"Dessert!A8","v":"Toblerone-Mousse im Glas"},{"$f":"Dessert!B8","v":"pro Stück"},{"$f":"Dessert!C8","v":"CHF"},{"$f":"Dessert!D8","v":2},{"$f":"Dessert!F8","v":0},{"$f":"Dessert!G8","v":"CHF"},{"$f":"Dessert!H8","v":0}]
[{"$f":"Dessert!A9","v":"Macarons assortiert "},{"$f":"Dessert!B9","v":"pro Stück"},{"$f":"Dessert!C9","v":"CHF"},{"$f":"Dessert!D9","v":2},{"$f":"Dessert!F9","v":0},{"$f":"Dessert!G9","v":"CHF"},{"$f":"Dessert!H9","v":0}]
[{"$f":"Dessert!A10","v":"Schoko-Kuss"},{"$f":"Dessert!B10","v":"pro Stück"},{"$f":"Dessert!C10","v":"CHF"},{"$f":"Dessert!D10","v":2},{"$f":"Dessert!F10","v":0},{"$f":"Dessert!G10","v":"CHF"},{"$f":"Dessert!H10","v":0}]
[{"$f":"Dessert!A11","v":"Pralinés assortiert   "},{"$f":"Dessert!B11","v":"pro Stück"},{"$f":"Dessert!C11","v":"CHF"},{"$f":"Dessert!D11","v":1.5},{"$f":"Dessert!F11","v":0},{"$f":"Dessert!G11","v":"CHF"},{"$f":"Dessert!H11","v":0}]
[{"$f":"Dessert!A12","v":"Saisonaler Fruchtspiess"},{"$f":"Dessert!B12","v":"pro Stück"},{"$f":"Dessert!C12","v":"CHF"},{"$f":"Dessert!D12","v":2.5},{"$f":"Dessert!F12","v":0},{"$f":"Dessert!G12","v":"CHF"},{"$f":"Dessert!H12","v":0}]
[{"$f":"Dessert!A13","v":"Hausgemachtes Mini Pana Cotta mit saisonalen Früchten  "},{"$f":"Dessert!B13","v":"pro Stück"},{"$f":"Dessert!C13","v":"CHF"},{"$f":"Dessert!D13","v":2},{"$f":"Dessert!F13","v":0},{"$f":"Dessert!G13","v":"CHF"},{"$f":"Dessert!H13","v":0}]
[{"$f":"Dessert!A14","v":"Hausgemachtes Karamelköpfli"},{"$f":"Dessert!B14","v":"pro Stück"},{"$f":"Dessert!C14","v":"CHF"},{"$f":"Dessert!D14","v":3.7},{"$f":"Dessert!F14","v":0},{"$f":"Dessert!G14","v":"CHF"},{"$f":"Dessert!H14","v":0}]
[{"$f":"Dessert!A15","v":"Hausgemachter Schokoladenkuchen\n"},{"$f":"Dessert!B15","v":"pro Person"},{"$f":"Dessert!C15","v":"CHF"},{"$f":"Dessert!D15","v":3.7},{"$f":"Dessert!F15","v":0},{"$f":"Dessert!G15","v":"CHF"},{"$f":"Dessert!H15","v":0}]
[{"$f":"Dessert!A16","v":"Hausgemachter Zitronenkuchen\n"},{"$f":"Dessert!B16","v":"pro Person"},{"$f":"Dessert!C16","v":"CHF"},{"$f":"Dessert!D16","v":3.7},{"$f":"Dessert!F16","v":0},{"$f":"Dessert!G16","v":"CHF"},{"$f":"Dessert!H16","v":0}]
[{"$f":"Dessert!A17","v":"Hausgemachter Tiroler Cake\n"},{"$f":"Dessert!B17","v":"pro Person"},{"$f":"Dessert!C17","v":"CHF"},{"$f":"Dessert!D17","v":3.7},{"$f":"Dessert!F17","v":0},{"$f":"Dessert!G17","v":"CHF"},{"$f":"Dessert!H17","v":0}]
[{"$f":"Dessert!A18","v":"Hausgemachter Rüeblikuchen"},{"$f":"Dessert!B18","v":"pro Person"},{"$f":"Dessert!C18","v":"CHF"},{"$f":"Dessert!D18","v":3.7},{"$f":"Dessert!F18","v":0},{"$f":"Dessert!G18","v":"CHF"},{"$f":"Dessert!H18","v":0}]
[{"$f":"Dessert!A19","v":"Schoggigipfel"},{"$f":"Dessert!B19","v":"pro Stück"},{"$f":"Dessert!C19","v":"CHF"},{"$f":"Dessert!D19","v":2.7},{"$f":"Dessert!F19","v":0},{"$f":"Dessert!G19","v":"CHF"},{"$f":"Dessert!H19","v":0}]
[{"$f":"Dessert!A20","v":"Crème Schnitte  "},{"$f":"Dessert!B20","v":"pro Stück"},{"$f":"Dessert!C20","v":"CHF"},{"$f":"Dessert!D20","v":3.5},{"$f":"Dessert!F20","v":0},{"$f":"Dessert!G20","v":"CHF"},{"$f":"Dessert!H20","v":0}]
[{"$f":"Dessert!A21","v":"Brownie"},{"$f":"Dessert!B21","v":"pro Stück"},{"$f":"Dessert!C21","v":"CHF"},{"$f":"Dessert!D21","v":2.5},{"$f":"Dessert!F21","v":0},{"$f":"Dessert!G21","v":"CHF"},{"$f":"Dessert!H21","v":0}]
[{"$f":"Dessert!A22","v":"Mini Patisserie, assortiert"},{"$f":"Dessert!B22","v":"pro Person"},{"$f":"Dessert!C22","v":"CHF"},{"$f":"Dessert!D22","v":2.5},{"$f":"Dessert!F22","v":0},{"$f":"Dessert!G22","v":"CHF"},{"$f":"Dessert!H22","v":0}]
[{"$f":"Dessert!A23","v":"Muffins\n(Blueberry, Schokolade, Himbeere)"},{"$f":"Dessert!B23","v":"pro Stück"},{"$f":"Dessert!C23","v":"CHF"},{"$f":"Dessert!D23","v":2.6},{"$f":"Dessert!F23","v":0},{"$f":"Dessert!G23","v":"CHF"},{"$f":"Dessert!H23","v":0}]
[{"$f":"Dessert!A24","v":"Cookies\n(Schokolade, Macadamia, ChocolateChip, Walnuss, Butter)"},{"$f":"Dessert!B24","v":"pro Person"},{"$f":"Dessert!C24","v":"CHF"},{"$f":"Dessert!D24","v":3.1},{"$f":"Dessert!F24","v":0},{"$f":"Dessert!G24","v":"CHF"},{"$f":"Dessert!H24","v":0}]
[{"$f":"Dessert!A25","v":"Waffel"},{"$f":"Dessert!B25","v":"pro Person"},{"$f":"Dessert!C25","v":"CHF"},{"$f":"Dessert!D25","v":3.5},{"$f":"Dessert!F25","v":0},{"$f":"Dessert!G25","v":"CHF"},{"$f":"Dessert!H25","v":0}]
[{"$f":"Dessert!A26","v":"Chiapudding"},{"$f":"Dessert!B26","v":"pro Person"},{"$f":"Dessert!C26","v":"CHF"},{"$f":"Dessert!D26","v":1},{"$f":"Dessert!F26","v":0},{"$f":"Dessert!G26","v":"CHF"},{"$f":"Dessert!H26","v":0}]
[{"$f":"Dessert!A27","v":"Magnum Mini Glace, assortiert"},{"$f":"Dessert!B27","v":"pro Stück"},{"$f":"Dessert!C27","v":"CHF"},{"$f":"Dessert!D27","v":3.4},{"$f":"Dessert!F27","v":0},{"$f":"Dessert!G27","v":"CHF"},{"$f":"Dessert!H27","v":0}]
[{"$f":"Dessert!A28","v":"Veganes Panna Cotta mit Fruchttopping"},{"$f":"Dessert!B28","v":"pro Stück"},{"$f":"Dessert!C28","v":"CHF"},{"$f":"Dessert!D28","v":3.9},{"$f":"Dessert!F28","v":0},{"$f":"Dessert!G28","v":"CHF"},{"$f":"Dessert!H28","v":0}]
[{"$f":"Dessert!A29","v":"Veganer Apfelstrudel"},{"$f":"Dessert!B29","v":"pro Stück"},{"$f":"Dessert!C29","v":"CHF"},{"$f":"Dessert!D29","v":4.0999999999999996},{"$f":"Dessert!F29","v":0},{"$f":"Dessert!G29","v":"CHF"},{"$f":"Dessert!H29","v":0}]
[{"$f":"Dessert!A30","v":"Kichererbsen-Schokoladenmousse"},{"$f":"Dessert!B30","v":"pro Stück"},{"$f":"Dessert!C30","v":"CHF"},{"$f":"Dessert!D30","v":4.7},{"$f":"Dessert!F30","v":0},{"$f":"Dessert!G30","v":"CHF"},{"$f":"Dessert!H30","v":0}]
[{"$f":"Getränke!A8","v":"Wasser"},{"$f":"Getränke!B8","v":0},{"$f":"Getränke!C8","v":0},{"$f":"Getränke!D8","v":0},{"$f":"Getränke!F8","v":0},{"$f":"Getränke!G8","v":0},{"$f":"Getränke!H8","v":0}]
[{"$f":"Getränke!A9","v":"Valser ohne Kohlensäure, PET"},{"$f":"Getränke!B9","v":"0.5 l"},{"$f":"Getränke!C9","v":"CHF"},{"$f":"Getränke!D9","v":2.5},{"$f":"Getränke!F9","v":0},{"$f":"Getränke!G9","v":"CHF"},{"$f":"Getränke!H9","v":0}]
[{"$f":"Getränke!A10","v":"Valser ohne Kohlensäure, Glas"},{"$f":"Getränke!B10","v":"1l"},{"$f":"Getränke!C10","v":"CHF"},{"$f":"Getränke!D10","v":4},{"$f":"Getränke!F10","v":0},{"$f":"Getränke!G10","v":"CHF"},{"$f":"Getränke!H10","v":0}]
[{"$f":"Getränke!A11","v":"Valser mit Kohlensäure, PET"},{"$f":"Getränke!B11","v":"0.5 l"},{"$f":"Getränke!C11","v":"CHF"},{"$f":"Getränke!D11","v":2.5},{"$f":"Getränke!F11","v":0},{"$f":"Getränke!G11","v":"CHF"},{"$f":"Getränke!H11","v":0}]
[{"$f":"Getränke!A12","v":"Valser mit Kohlensäure, Glas"},{"$f":"Getränke!B12","v":"1l"},{"$f":"Getränke!C12","v":"CHF"},{"$f":"Getränke!D12","v":4},{"$f":"Getränke!F12","v":0},{"$f":"Getränke!G12","v":"CHF"},{"$f":"Getränke!H12","v":0}]
[{"$f":"Getränke!A13","v":"Flavored Water mit saisonalem Geschmack  "},{"$f":"Getränke!B13","v":"1 l"},{"$f":"Getränke!C13","v":"CHF"},{"$f":"Getränke!D13","v":6},{"$f":"Getränke!F13","v":0},{"$f":"Getränke!G13","v":"CHF"},{"$f":"Getränke!H13","v":0}]
[{"$f":"Getränke!A14","v":"Flavored Water mit saisonalem Geschmack "},{"$f":"Getränke!B14","v":"4 l"},{"$f":"Getränke!C14","v":"CHF"},{"$f":"Getränke!D14","v":24},{"$f":"Getränke!F14","v":0},{"$f":"Getränke!G14","v":"CHF"},{"$f":"Getränke!H14","v":0}]
[{"$f":"Getränke!A15","v":"Säfte und Hausgemachtes"},{"$f":"Getränke!B15","v":0},{"$f":"Getränke!C15","v":0},{"$f":"Getränke!D15","v":0},{"$f":"Getränke!F15","v":0},{"$f":"Getränke!G15","v":"CHF"},{"$f":"Getränke!H15","v":0}]
[{"$f":"Getränke!A16","v":"Orangensaft"},{"$f":"Getränke!B16","v":"1 l"},{"$f":"Getränke!C16","v":"CHF"},{"$f":"Getränke!D16","v":6},{"$f":"Getränke!F16","v":0},{"$f":"Getränke!G16","v":"CHF"},{"$f":"Getränke!H16","v":0}]
[{"$f":"Getränke!A17","v":"Hausgemachte Smoothies "},{"$f":"Getränke!B17","v":"2.5 dl"},{"$f":"Getränke!C17","v":"CHF"},{"$f":"Getränke!D17","v":3.5},{"$f":"Getränke!F17","v":0},{"$f":"Getränke!G17","v":"CHF"},{"$f":"Getränke!H17","v":0}]
[{"$f":"Getränke!A18","v":"Süssgetränke"},{"$f":"Getränke!B18","v":0},{"$f":"Getränke!C18","v":0},{"$f":"Getränke!D18","v":0},{"$f":"Getränke!F18","v":0},{"$f":"Getränke!G18","v":0},{"$f":"Getränke!H18","v":0}]
[{"$f":"Getränke!A19","v":"Coca-Cola"},{"$f":"Getränke!B19","v":"4.5 dl"},{"$f":"Getränke!C19","v":"CHF"},{"$f":"Getränke!D19","v":3},{"$f":"Getränke!F19","v":0},{"$f":"Getränke!G19","v":"CHF"},{"$f":"Getränke!H19","v":0}]
[{"$f":"Getränke!A20","v":"Coke Zero"},{"$f":"Getränke!B20","v":"4.5 dl"},{"$f":"Getränke!C20","v":"CHF"},{"$f":"Getränke!D20","v":3},{"$f":"Getränke!F20","v":0},{"$f":"Getränke!G20","v":"CHF"},{"$f":"Getränke!H20","v":0}]
[{"$f":"Getränke!A21","v":"Fanta"},{"$f":"Getränke!B21","v":"5 dl"},{"$f":"Getränke!C21","v":"CHF"},{"$f":"Getränke!D21","v":3},{"$f":"Getränke!F21","v":0},{"$f":"Getränke!G21","v":"CHF"},{"$f":"Getränke!H21","v":0}]
[{"$f":"Getränke!A22","v":"Sprite"},{"$f":"Getränke!B22","v":"5 dl"},{"$f":"Getränke!C22","v":"CHF"},{"$f":"Getränke!D22","v":3},{"$f":"Getränke!F22","v":0},{"$f":"Getränke!G22","v":"CHF"},{"$f":"Getränke!H22","v":0}]
[{"$f":"Getränke!A23","v":"Ice Tea Lemon"},{"$f":"Getränke!B23","v":"5 dl"},{"$f":"Getränke!C23","v":"CHF"},{"$f":"Getränke!D23","v":3},{"$f":"Getränke!F23","v":0},{"$f":"Getränke!G23","v":"CHF"},{"$f":"Getränke!H23","v":0}]
[{"$f":"Getränke!A24","v":"Ice Tea Peach"},{"$f":"Getränke!B24","v":"5 dl"},{"$f":"Getränke!C24","v":"CHF"},{"$f":"Getränke!D24","v":3},{"$f":"Getränke!F24","v":0},{"$f":"Getränke!G24","v":"CHF"},{"$f":"Getränke!H24","v":0}]
[{"$f":"Getränke!A25","v":"Rivella rot "},{"$f":"Getränke!B25","v":"5 dl"},{"$f":"Getränke!C25","v":"CHF"},{"$f":"Getränke!D25","v":3},{"$f":"Getränke!F25","v":0},{"$f":"Getränke!G25","v":"CHF"},{"$f":"Getränke!H25","v":0}]
[{"$f":"Getränke!A26","v":"Rivella blau "},{"$f":"Getränke!B26","v":"5 dl"},{"$f":"Getränke!C26","v":"CHF"},{"$f":"Getränke!D26","v":3},{"$f":"Getränke!F26","v":0},{"$f":"Getränke!G26","v":"CHF"},{"$f":"Getränke!H26","v":0}]
[{"$f":"Getränke!A27","v":"Ramseier Apfelschorle"},{"$f":"Getränke!B27","v":"5 dl"},{"$f":"Getränke!C27","v":"CHF"},{"$f":"Getränke!D27","v":3},{"$f":"Getränke!F27","v":0},{"$f":"Getränke!G27","v":"CHF"},{"$f":"Getränke!H27","v":0}]
[{"$f":"Getränke!A28","v":"Comella"},{"$f":"Getränke!B28","v":"3.3 dl"},{"$f":"Getränke!C28","v":"CHF"},{"$f":"Getränke!D28","v":3},{"$f":"Getränke!F28","v":0},{"$f":"Getränke!G28","v":"CHF"},{"$f":"Getränke!H28","v":0}]
[{"$f":"Getränke!A29","v":"Tee"},{"$f":"Getränke!B29","v":0},{"$f":"Getränke!C29","v":0},{"$f":"Getränke!D29","v":0},{"$f":"Getränke!F29","v":0},{"$f":"Getränke!G29","v":0},{"$f":"Getränke!H29","v":0}]
[{"$f":"Getränke!A30","v":"Diverse Sorten, assortiert"},{"$f":"Getränke!B30","v":"pro Tasse"},{"$f":"Getränke!C30","v":"CHF"},{"$f":"Getränke!D30","v":2.5},{"$f":"Getränke!F30","v":0},{"$f":"Getränke!G30","v":"CHF"},{"$f":"Getränke!H30","v":0}]
[{"$f":"Getränke!A31","v":0},{"$f":"Getränke!B31","v":"1 l"},{"$f":"Getränke!C31","v":"CHF"},{"$f":"Getränke!D31","v":13.3},{"$f":"Getränke!F31","v":0},{"$f":"Getränke!G31","v":"CHF"},{"$f":"Getränke!H31","v":0}]
[{"$f":"Getränke!A32","v":"Kaffee"},{"$f":"Getränke!B32","v":0},{"$f":"Getränke!C32","v":0},{"$f":"Getränke!D32","v":0},{"$f":"Getränke!F32","v":0},{"$f":"Getränke!G32","v":0},{"$f":"Getränke!H32","v":0}]
[{"$f":"Getränke!A33","v":"Frischer Kaffee"},{"$f":"Getränke!B33","v":"pro Tasse"},{"$f":"Getränke!C33","v":"CHF"},{"$f":"Getränke!D33","v":2.5},{"$f":"Getränke!F33","v":0},{"$f":"Getränke!G33","v":"CHF"},{"$f":"Getränke!H33","v":0}]
[{"$f":"Getränke!A34","v":0},{"$f":"Getränke!B34","v":"1 l"},{"$f":"Getränke!C34","v":"CHF"},{"$f":"Getränke!D34","v":13.3},{"$f":"Getränke!F34","v":0},{"$f":"Getränke!G34","v":"CHF"},{"$f":"Getränke!H34","v":0}]
[{"$f":"Getränke!A35","v":"Cappuccino"},{"$f":"Getränke!B35","v":"pro Tasse"},{"$f":"Getränke!C35","v":"CHF"},{"$f":"Getränke!D35","v":3},{"$f":"Getränke!F35","v":0},{"$f":"Getränke!G35","v":"CHF"},{"$f":"Getränke!H35","v":0}]
[{"$f":"Getränke!A36","v":"Café Latte"},{"$f":"Getränke!B36","v":"pro Tasse"},{"$f":"Getränke!C36","v":"CHF"},{"$f":"Getränke!D36","v":3},{"$f":"Getränke!F36","v":0},{"$f":"Getränke!G36","v":"CHF"},{"$f":"Getränke!H36","v":0}]
[{"$f":"Getränke!A37","v":"Espresso"},{"$f":"Getränke!B37","v":"pro Tasse"},{"$f":"Getränke!C37","v":"CHF"},{"$f":"Getränke!D37","v":2.5},{"$f":"Getränke!F37","v":0},{"$f":"Getränke!G37","v":"CHF"},{"$f":"Getränke!H37","v":0}]
[{"$f":"Getränke!A38","v":"Alkoholische Getränke"},{"$f":"Getränke!B38","v":0},{"$f":"Getränke!C38","v":0},{"$f":"Getränke!D38","v":0},{"$f":"Getränke!F38","v":0},{"$f":"Getränke!G38","v":0},{"$f":"Getränke!H38","v":0}]
[{"$f":"Getränke!A39","v":"Bier"},{"$f":"Getränke!B39","v":0},{"$f":"Getränke!C39","v":0},{"$f":"Getränke!D39","v":0},{"$f":"Getränke!F39","v":0},{"$f":"Getränke!G39","v":0},{"$f":"Getränke!H39","v":0}]
[{"$f":"Getränke!A40","v":"Feldschlösschen "},{"$f":"Getränke!B40","v":"33cl"},{"$f":"Getränke!C40","v":"CHF "},{"$f":"Getränke!D40","v":3.5},{"$f":"Getränke!F40","v":0},{"$f":"Getränke!G40","v":0},{"$f":"Getränke!H40","v":0}]
[{"$f":"Getränke!A41","v":"Feldschlösschen ( alkoholfrei)"},{"$f":"Getränke!B41","v":"33cl"},{"$f":"Getränke!C41","v":"CHF"},{"$f":"Getränke!D41","v":3},{"$f":"Getränke!F41","v":0},{"$f":"Getränke!G41","v":"CHF"},{"$f":"Getränke!H41","v":0}]
[{"$f":"Getränke!A42","v":"Prosecco "},{"$f":"Getränke!B42","v":0},{"$f":"Getränke!C42","v":0},{"$f":"Getränke!D42","v":0},{"$f":"Getränke!F42","v":0},{"$f":"Getränke!G42","v":"CHF"},{"$f":"Getränke!H42","v":0}]
[{"$f":"Getränke!A43","v":"Asolo Superiore"},{"$f":"Getränke!B43","v":"7.5 dl"},{"$f":"Getränke!C43","v":"CHF"},{"$f":"Getränke!D43","v":24.5},{"$f":"Getränke!F43","v":0},{"$f":"Getränke!G43","v":"CHF"},{"$f":"Getränke!H43","v":0}]
[{"$f":"Getränke!A44","v":"Weisswein"},{"$f":"Getränke!B44","v":"7.5 dl"},{"$f":"Getränke!C44","v":"CHF"},{"$f":"Getränke!D44","v":24.5},{"$f":"Getränke!F44","v":0},{"$f":"Getränke!G44","v":0},{"$f":"Getränke!H44","v":0}]
[{"$f":"Getränke!A45","v":"Epesses Lavaux"},{"$f":"Getränke!B45","v":0},{"$f":"Getränke!C45","v":0},{"$f":"Getränke!D45","v":0},{"$f":"Getränke!F45","v":0},{"$f":"Getränke!G45","v":0},{"$f":"Getränke!H45","v":0}]
[{"$f":"Getränke!A46","v":"Compleo blanc"},{"$f":"Getränke!B46","v":"7.5 dl"},{"$f":"Getränke!C46","v":"CHF"},{"$f":"Getränke!D46","v":24.5},{"$f":"Getränke!F46","v":0},{"$f":"Getränke!G46","v":"CHF"},{"$f":"Getränke!H46","v":0}]
[{"$f":"Getränke!A47","v":"Rotwein"},{"$f":"Getränke!B47","v":0},{"$f":"Getränke!C47","v":0},{"$f":"Getränke!D47","v":0},{"$f":"Getränke!F47","v":0},{"$f":"Getränke!G47","v":"CHF"},{"$f":"Getränke!H47","v":0}]
[{"$f":"Getränke!A48","v":"Compleocuvee noir"},{"$f":"Getränke!B48","v":"7.5dl"},{"$f":"Getränke!C48","v":"CHF"},{"$f":"Getränke!D48","v":24.5},{"$f":"Getränke!F48","v":0},{"$f":"Getränke!G48","v":0},{"$f":"Getränke!H48","v":0}]
[{"$f":"Getränke!A49","v":"Rioja Crianza Verena"},{"$f":"Getränke!B49","v":"7.5 dl"},{"$f":"Getränke!C49","v":"CHF"},{"$f":"Getränke!D49","v":24.5},{"$f":"Getränke!F49","v":0},{"$f":"Getränke!G49","v":"CHF"},{"$f":"Getränke!H49","v":0}]
[]
["Total (inkl. MWST)",null,null,null,null,"CHF",{"$f":"SUM(G20:G264)","v":0}]
[]
["Vielen Dank für Ihre Bestellung!"]

{"sheet":"Frühstück und Coffee Break","index":1,"n_rows":39,"n_cols":8,"rows_kept":39,"cut":false,"hidden":false,"merged":[[2,0,2,7]]}
[" Bestellung Catering"]
[]
[]
["Navigieren Sie ganz unkompiziert durch das Bestellformular."]
[null,"Einheit",null,"Preis/Einheit",null,"Anzahl",null,"Total"]
["Frühstück \nCombos ab 5 Personen bestellbar"]
["Einfaches Frühstück \nFrischer Kaffee oder Tee\nOrangensaft \nFrisches Gipfeli\nSaisonale Frucht   \nHausgemachtes Flavoured Water   ","pro Person","CHF",8.4,null,null,"CHF",{"$f":"IF(F7=0,0,IF(F7<5,D7*5,IF(F7>=5,D7*F7)))","v":0}]
["Einfaches Frühstück \nFrischer Kaffee oder Tee\nOrangensaft \nKnuspriges Brötchen\nSaisonale Frucht   \nHausgemachtes Flavoured Water   ","pro Person","CHF",8.4,null,null,"CHF",{"$f":"IF(F8=0,0,IF(F8<5,D8*5,IF(F8>=5,D8*F8)))","v":0}]
["Glutenarmes Frühstück \nFrischer Kaffee oder Tee\nOrangensaft \nGlutenfreies Brötchen (separat verpackt)\nButter und Konfitüre\nJogurt mit Früchte Topping\nSaisonale Frucht  \nHausgemachtes Flavoured Water ","pro Person","CHF",17.600000000000001,null,null,"CHF",0]
["Glutenarmes Frühstück \nFrischer Kaffee oder Tee\nFrischer Smoothie\nGlutenfreies Brötchen (separat verpackt)\nButter und Konfitüre\nJogurt mit Früchte Topping\nSaisonale Frucht  \nHausgemachtes Flavoured Water ","pro Person","CHF",17.600000000000001,null,null,"CHF",{"$f":"IF(F10=0,0,IF(F10<5,D10*5,IF(F10>=5,D10*F10)))","v":0}]
["Französisches Frühstück\nFrischer Kaffee oder Tee\nOrangensaft \nBrioche\nKäseauswahl\nJogurt mit Honig und Nüssen\nHausgemachtes Flavoured Water","pro Person","CHF",23,null,null,"CHF",0]
["Add-Ons / Snacks\nFrühstück ab 5 Personen bestellbar"]
["Buttergipfeli","pro Stück","CHF",1.3,null,null,"CHF",0]
["Laugengipfeli","pro Stück","CHF",1.3,null,null,"CHF",0]
["Rusticogipfeli","pro Stück","CHF",1.3,null,null,"CHF",0]
["Knuspriges Bürli","pro Stück","CHF",1.4,null,null,"CHF",0]
["Weggli","pro Stück","CHF",1.4,null,null,"CHF",0]
["Semmeli","pro Stück","CHF",1.4,null,null,"CHF",0]
["Früchtebrötli","pro Stück","CHF",1.8,null,null,"CHF",0]
["Körnerbrötli","pro Stück","CHF",1.4,null,null,"CHF",0]
["Dinkelbrötli","pro Stück","CHF",1.4,null,null,"CHF",0]
["Sojasemmel","pro Stück","CHF",1.4,null,null,"CHF",0]
["Jogurt mit Früchte-Topping im Glas","pro Stück","CHF",3.5,null,null,"CHF",0]
["Jogurt mit Crunch Topping im Glas","pro Stück","CHF",3.5,null,null,"CHF",0]
["Hausgemachtes Birchermüesli im Glas","pro Stück","CHF",3.8,null,null,"CHF",0]
["Laktosefreies Jogurt","pro Stück","CHF",2.6,null,null,"CHF",0]
["Fruchtsalat im Glas","pro Stück","CHF",3,null,null,"CHF",0]
["Süsses und Spezielles"]
["Schoggigipfeli","pro Stück","CHF",2.7,null,null,"CHF",0]
["Dounut\n","pro Stück","CHF",1.6,null,null,"CHF",0]
["Brownie","pro Stück","CHF",3.6,null,null,"CHF",0]
["Mini Patisserie, assortiert","pro Person","CHF",2.5,null,null,"CHF",0]
["Fruchtspiessli","pro Stück","CHF",5.7,null,null,"CHF",0]
["Cookie-Variation","pro Person","CHF",3.6,null,null,"CHF",0]
["Waffel","pro Stück","CHF",3.6,null,null,"CHF",0]
["Bagel mit Frischkäsefüllung ","pro Stück","CHF",7.7,null,null,"CHF",0]
["Coffee Break\nCoffee Break ab 5 Personen bestellbar",null,null,null,null,null,null,0]
["Swiss Break\nFrischer Kaffee oder Tee\nOrangensaft \nSüssgebäck assortiert\nSaisonaler Früchtekorb \nHausgemachtes Flavoured Water ","pro Person","CHF",14.9,null,null,"CHF",0]
["French Break\nFrischer Kaffee oder Tee\nOrangensaft  \nBrioche / Croissant\nSaisonaler Früchtekorb\nHausgemachtes Flavoured Water","pro Person","CHF",15.4,null,null,"CHF",0]

{"sheet":"Sandwiches & Apéro","index":2,"n_rows":109,"n_cols":8,"rows_kept":109,"cut":false,"hidden":false,"merged":[[108,0,108,7],[2,0,2,7]]}
[" Bestellung Catering"]
[]
[]
["Navigieren Sie ganz unkompiziert durch das Bestellformular."]
[null,"Einheit",null,"Preis/Einheit",null,"Anzahl",null,"Total"]
["Znüni Sandwiches\nSandwiches ab 5 Personen bestellbar"]
["Kleine Apéro Sandwiches\n(3 Brötchen pro Person)\nVariation an Laugenbrötchen, Rusticobrötchen, \nBrioche und Mini Bürli, gefüllt mit\nThon-Mousse, Frischkäse, Rohschinken, Käse und gegrilltem Gemüse\n","pro Person","CHF",10.8,null,null,"CHF",{"$f":"IF(F7=0,0,IF(F7<5,D7*5,IF(F7>=5,D7*F7)))","v":0}]
["Steinofenbaguette, 52cm\n(reicht für ca. 6 Personen)\nKnuspriges Baguette gefüllt mit Schinken, Salami, Fleischkäse\nund Käse, garniert mit Salat, Gürkchen und Tomaten\n","pro Stück","CHF",21.2,null,null,"CHF",{"$f":"D8*F8","v":0}]
["Veganes Steinofenbaguette, 52cm\n(reicht für ca. 6 Personen)\nKnuspriges Baguette gefüllt mit Avocado mit weissen Bohnen, Antipasti, Räuchertofu und Hummus\n","pro Stück","CHF",25,null,null,"CHF",{"$f":"D9*F9","v":0}]
["Triangle Sandwich\nGerösteter Toast gefüllt mit Schinken und Käse\n\n","pro Stück","CHF",7.2,null,null,"CHF",0]
["Triangle Sandwich\nGerösteter Toast gefüllt mit Thonmousse","pro Stück","CHF",7.2,null,null,"CHF",0]
["Triangle Sandwich\nGerösteter Toast gefüllt mit Eimousse ","pro Stück","CHF",7.2,null,null,"CHF",0]
["Triangle Sandwich\nGerösteter Toast gefüllt mit Kräuterfrischkäse","pro Stück","CHF",7.2,null,null,"CHF",0]
["Triangle Sandwich vegan\nGerösteter Toast gefüllt mit Avocado und weissen Bohnen","pro Stück","CHF",7.2,null,null,"CHF",0]
["Triangle Sandwich vegan\nGerösteter Toast gefüllt mit Antipasti\n","pro Stück","CHF",7.2,null,null,"CHF",0]
["Triangle Sandwich vegan\nGerösteter Toast gefüllt mit Räuchertofu und Hummus\n","pro Stück","CHF",7.2,null,null,"CHF",0]
["Canapées \nWeizentoast belegt mit Ei\n","pro Stück","CHF",3.6,null,null,"CHF",0]
["Canapées\nWeizentoast belegt mit Spargel\n","pro Stück","CHF",3.6,null,null,"CHF",0]
["Canapées \nWeizentoast belegt mit Lachs\n","pro Stück","CHF",3.6,null,null,"CHF",0]
["Canapées\nWeizentoast belegt mit Thonmousse \n","pro Stück","CHF",3.6,null,null,"CHF",0]
["Canapées\nWeizentoast belegt mit Rindstatar\n","pro Stück","CHF",3.6,null,null,"CHF",0]
["Vollkorn Canapées\nVollkorntoast belegt mit Ei\n","pro Stück","CHF",3.6,null,null,"CHF",0]
["Vollkorn Canapées\nVollkorntoast belegt mit Spargel\n\n","pro Stück","CHF",3.6,null,null,"CHF",0]
["Vollkorn Canapées\nVollkorntoast belegt mit Lachs \n","pro Stück","CHF",3.6,null,null,"CHF",{"$f":"IF(F24=0,0,IF(F24<5,D24*5,IF(F24>=5,D24*F24)))","v":0}]
["Vollkorn Canapées\nVollkorntoast belegt mit Thonmousse ","pro Stück","CHF",3.6,null,null,"CHF",0]
["Vollkorn Canapées\nVollkorntoast belegt mit Rindstatar","pro Stück","CHF",3.6,null,null,"CHF",{"$f":"IF(F26=0,0,IF(F26<5,D26*5,IF(F26>=5,D26*F26)))","v":0}]
[]
["Apéro"]
["Varianten\nApéro Variationen ab 10 Personen bestellbar"]
["Small Apéro\nKleine Apéro Sandwiches assortiert\nFruchtsalat im Glas","pro Person","CHF",13.5,null,null,"CHF",{"$f":"IF(F30=0,0,IF(F30<5,D30*10,IF(F30>=10,D30*F30)))","v":0}]
["Medium Apéro\nParty Schinkengipfel\nMini Chäschüechli\nMozzarella-Tomaten Spiess\nZucchini-Röllchen gefüllt mit Frischkäse\nHackbällchen in pikanter Tomatensauce im Glas","pro Person","CHF",21.5,null,null,"CHF",{"$f":"IF(F31=0,0,IF(F31<5,D31*10,IF(F31>=10,D31*F31)))","v":0}]
["Large\nPoulet-Satay Spiessli\nGemüse-Frühlingsrolle mit Sweet Chilisauce\nGebackene Shrimps mit Dip Sauce            \nAsiatischer Gurkensalat im Glas\nAntipasti Spiessli\nGrisini mit Rohschinken\nFruchtsalat im Glas","pro Person","CHF",35.9,null,null,"CHF",0]
["XL Apéro                    \t\nApéro-Sandwiches mit Rauchlachs, Rohschinken oder Brie\nWrap Antipasti Style \nSamosa mit Dip Sauce\nFischknusperli mit Sauce Tartar\nBruschetta mit Tomate und Zwiebel\nKrevetten Salat Thai Style im Glas\nSaisonale Spiesse \nHausgemachtes Mini Pana Cotta mit saisonalen Früchten  ","pro Person","CHF",39,null,null,"CHF",0]
["Sandwiches\nSandwiches ab 5 Personen bestellbar\n"]
["Gefülltes Parisette (57cm) \nKnuspriges Parisette gefüllt mit \neiner Variation aus Schinken, Salami, Fleischkäse,\nKäse und Antipasti Gemüse","pro Stück","CHF",25.1,null,null,"CHF",{"$f":"D35*F35","v":0}]
["Focaccia  \t\ngefüllt mit Falafel und Hummuu, garniert mit reichlich Salat\n","pro Stück","CHF",13.9,null,null,"CHF",{"$f":"IF(F36=0,0,IF(F36<5,D36*5,IF(F36>=5,D36*F36)))","v":0}]
["Focaccia  \t\ngefüllt mit Roastbeef, Frischkäse, Salat, Tomaten, Gurken und Radieschen\n","pro Stück","CHF",13.9,null,null,"CHF",0]
["Focaccia  \t\ngefüllt mit Pouletstreifen, Currysauce, Salat und Tomaten \n","pro Stück","CHF",13.9,null,null,"CHF",0]
["Focaccia  \t\ngefüllt mit Tomaten, Mozzarella, Frischkäse und Basilikum","pro Stück","CHF",13.9,null,null,"CHF",0]
["Partybrötchen de lux\n(3 Brötchen pro Person)\nVariation an Laugenbrötchen, Rusticobrötchen, Brioche und \nMini Bürli, gefüllt mit Rauchlachs, Roastbeef, Coppa, Bri und Birne","pro Person","CHF",16.899999999999999,null,null,"CHF",0]
["Gefüllter Bagel         \t\nFrischer Bagel gefüllt mit Frischkäse auf Salatgarnitur\n","pro Stück","CHF",9.4,null,null,"CHF",0]
["Gefüllter Bagel         \t\nFrischer Bagel gefüllt mit Eimousse auf Salatgarnitur\n","pro Stück","CHF",9.4,null,null,"CHF",0]
["Gefüllter Bagel         \t\nFrischer Bagel gefüllt mit Tomate, Mozzarella auf Ruccola\n\n","pro Stück","CHF",9.4,null,null,"CHF",0]
["Gefüllter Bagel         \t\nFrischer Bagel gefüllt mit Rauchlachs, Frischkäse, Meerrettich und Zwiebeln\n","pro Stück","CHF",9.4,null,null,"CHF",0]
["Laugenstange 50cm        \t\n(reicht für ca. 6 Personen)\nFrische, lange Laugenstange \ngefüllt mit Salami, Schinken, Käse und Grillgemüse","pro Person","CHF",63.5,null,null,"CHF",{"$f":"D45*F45","v":0}]
["Wraps\nWraps ab 5 Personen bestellbar"]
["Wrap Swiss Style\ngefüllt mit Vorderschinken und Emmentaler","pro Person","CHF",8,null,null,"CHF",0]
["Wrap Italy Style\ngefüllt mit Rucola, Parmesan, Pinienkernen,\nRohschinken und getrockneten Tomaten","pro Person","CHF",14.5,null,null,"CHF",0]
["Wrap Greek Style \ngefüllt mit Lamm, Salat, schwarzen Oliven und Tzaziki","pro Person","CHF",8.5,null,null,"CHF",0]
["Wrap Moroccan Style\ngefüllt mit Bulgur, Hummus, Aubergine, Granatapfelkernen \nund Salat","pro Person","CHF",6.9,null,null,"CHF",0]
["Wrap Antipasti\ngefüllt mit Antipastigemüse und Rucola","pro Person","CHF",8,null,null,"CHF",0]
["Mini Wrap\ngefüllt mit Philadelphia, Rucola, Zuchetti, Radieschen und Karotten\n","pro Person","CHF",1.5,null,null,"CHF",0]
["Mini Wrap\ngefüllt mit Rauchlachs, Meerrettich, Salat, Zwiebeln und Gurken\n","pro Person","CHF",2.8,null,null,"CHF",0]
["Mini Wrap\ngefüllt mit Roastbeef, Salat, Zwiebeln, Peperoni und Senf-Mayonaise","pro Person","CHF",3.1,null,null,"CHF",0]
["Kalte Häppchen\nKalte Häppchen ab 10 Personen bestellbar"]
["Rohe Gemüsesticks mit Dip Sauce","pro Person","CHF",4,null,null,"CHF",{"$f":"IF(F56=0,0,IF(F56<5,D56*10,IF(F56>=10,D56*F56)))","v":0}]
["Bruschetta mit frischen Tomaten und Zwiebel","pro Stück","CHF",2.6,null,null,"CHF",{"$f":"IF(F57=0,0,IF(F57<5,D57*10,IF(F57>=10,D57*F57)))","v":0}]
["Rauchlachs auf gerösteter Toastbrotscheibe","pro Stück","CHF",3.7,null,null,"CHF",0]
["Crevetten Cocktail im Glas","pro Stück","CHF",3.9,null,null,"CHF",0]
["Asiatischer Gurkensalat im Glas","pro Stück","CHF",2.4,null,null,"CHF",0]
["Zucchini-Röllchen gefüllt mit Frischkäse","pro Stück","CHF",2.8,null,null,"CHF",0]
["Mini Pastetchen mit Frischkäsefüllung","pro Stück","CHF",2.5,null,null,"CHF",0]
["Mini Pastetchen mit Thonmousse","pro Stück","CHF",2.5,null,null,"CHF",0]
["Mini Pastetchen mit Rauchlachstartar","pro Stück","CHF",2.5,null,null,"CHF",0]
["Roastbeef Röllchen mit Frischkäse","pro Stück","CHF",4.0999999999999996,null,null,"CHF",0]
["Grisini mit Rohschinken","pro Stück","CHF ",2.7,null,null,"CHF",0]
["Mini Pita Brot mit Hummus","pro Person","CHF",2.4,null,null,"CHF",0]
["Spiessli"]
["Tomaten-Mozzarella ","pro Stück","CHF",2.6,null,null,"CHF",0]
["Käse-Trauben","pro Stück","CHF",2.6,null,null,"CHF",0]
["Feigen-Brie","pro Stück","CHF",3.7,null,null,"CHF",0]
["Saisonale Früchte  ","pro Stück","CHF",1,null,null,"CHF",0]
["Antipasti ","pro Stück","CHF",7.3,null,null,"CHF",0]
["Melone-Rohschinken  ","pro Stück","CHF",2.6,null,null,"CHF",0]
["Platten\nApéro Platten ab 5 Personen bestellbar"]
["Käse Platte    \n(100g Käse pro Person)\nVerschiedene Sorten an Hart- und Weichkäse\ngarniert mit Trauben und Walnüssen\ndazu servieren wir Ihnen frisches Nussbrot","pro Person","CHF",12.2,null,null,"CHF",{"$f":"IF(F76=0,0,IF(F76<5,D76*5,IF(F76>=5,D76*F76)))","v":0}]
["Fleisch Platte \n(100g Fleisch pro Person)\nTrockenfleisch, Rohschinken, Speck, Salami, Aufschnitt\ngarniert mit Essiggurken, Silberzwiebeln und Tomaten\ndazu servieren wir Ihnen frisches Brot\n","pro Person","CHF",12.4,null,null,"CHF",{"$f":"IF(F77=0,0,IF(F77<5,D77*5,IF(F77>=5,D77*F77)))","v":0}]
["Vegane Platte     \n(200g pro Person)\nPita Brot mit Hummus, Edamame, Oliven, Dörrtomaten und Falafel","pro Person","CHF",11,null,null,"CHF",0]
["Mediterane Platte \n(250g pro Person)\nMariniertes, gegrilltes Gemüse, \ngefüllte Peperoni, Oliven, Feta oder Parmesan\ndazu servieren wir Ihnen ofenfrisches Focacciabrot","pro Person","CHF",27.6,null,null,"CHF",{"$f":"IF(F79=0,0,IF(F79<5,D79*5,IF(F79>=5,D79*F79)))","v":0}]
["Warme Häppchen\nWarme Häppchen ab 10 Personen bestellbar "]
["Gemüse-Frühlingsrolle","pro Stück","CHF",2.5,null,null,"CHF",{"$f":"IF(F81=0,0,IF(F81<10,D81*10,IF(F81>=10,D81*F81)))","v":0}]
["Chäschüechli","pro Stück","CHF",2.5,null,null,"CHF",{"$f":"IF(F82=0,0,IF(F82<10,D82*10,IF(F82>=10,D82*F82)))","v":0}]
["Poulet-Satay Spiessli","pro Stück","CHF",3.7,null,null,"CHF",0]
["Schinkengipfel","pro Stück","CHF",2.5,null,null,"CHF",0]
["Mini Pizza ","pro Stück","CHF",2.5,null,null,"CHF",0]
["Fisch-Knusperli mit Sauce Tartar","pro Person","CHF",9.5,null,null,"CHF",0]
["Crevetten Spiessli","pro Stück","CHF",4,null,null,"CHF",0]
["Gebackene Shrimps mit Dip Sauce ","pro Stück","CHF",6.3,null,null,"CHF",0]
["Speckbrot überbacken mit Raclette Käse ","pro Stück","CHF",3.5,null,null,"CHF",0]
["Chicken Nuggets mit Dip Sauce","pro Stück","CHF",7,null,null,"CHF",0]
["Mini Hot Dog","pro Stück","CHF",1.5,null,null,"CHF",0]
["Hot Jalapenos mit Sauerrahm Dip","pro Stück","CHF",2.5,null,null,"CHF",0]
["Dattel im Speckmantel","pro Stück","CHF ",1.5,null,null,"CHF",0]
["Quesadillas (Käse-Chili Füllung)","pro Person","CHF",2.5,null,null,"CHF",0]
["Schnitzelbrot mit Tartarsauce","pro Stück","CHF",6.9,null,null,"CHF",{"$f":"IF(F95=0,0,IF(F95<10,D95*10,IF(F95>=10,D95*F95)))","v":0}]
["Snacks",null,null,null,null,null,null,{"$f":"IF(F96=0,0,IF(F96<10,D96*10,IF(F96>=10,D96*F96)))","v":0}]
["Kartoffelchips Paprik","pro Person","CHF",1.8,null,null,"CHF",0]
["Kartoffelchips Salz","pro Person","CHF",1.8,null,null,"CHF",0]
["Gemüsechips","pro Person","CHF",3.7,null,null,"CHF",0]
["Salznüssli","pro Person","CHF",0.8,null,null,"CHF",0]
["Salzstängeli","pro Person","CHF",1.3,null,null,"CHF",0]
["Nachos mit Guacamole ","pro Person","CHF",1.4,null,null,"CHF",0]
["Nachos mit Salsa Dip ","pro Person","CHF",1.4,null,null,"CHF",0]
["Marinierte Oliven ","pro Person","CHF",10.5,null,null,"CHF",0]
["Geröstete Nüsse","pro Person","CHF",15,null,null,"CHF",0]
["Parmesanmöckli","pro Person","CHF",8.5,null,null,"CHF",0]
["Marinierte Fetawürfel","pro Person","CHF",2.7,null,null,"CHF",0]
["Around the World"]
["Gerne offerieren wir Ihnen ein massgeschneidertes Angebot in dem wir Ihnen Speisen rund um den Globus zusammenstellen. \nGanz nach Ihrem Geschmack stellen wir verschiedene Speisen auch für \nAllergiker oder spezielle Themen-Events zusammen.\t                                                            Lieferbar ab 15 Personen\n\nPreis je nach gewünschten Speisen auf Anfrage"]

{"sheet":"Lunch","index":3,"n_rows":40,"n_cols":8,"rows_kept":40,"cut":false,"hidden":false,"merged":[[2,0,2,7]]}
[" Bestellung Catering"]
[]
[]
["Navigieren Sie ganz unkompiziert durch das Bestellformular."]
[null,"Einheit",null,"Preis/Einheit",null,"Anzahl",null,"Total"]
["Lunch"]
["Lunchpakete kalt\nDeklarationen je nach Ihrer Bestellung"]
["Einfacher Lunch\nSandwich gefüllt mit Schinken\nSaisonale Frucht  \nSchoggiriegel ","pro Person","CHF",15.6,null,null,"CHF",{"$f":"IF(F8=0,0,IF(F8<5,D8*5,IF(F8>=5,D8*F8)))","v":0}]
["Einfacher Lunch\nSandwich gefüllt mit Salami\nSaisonale Frucht  \nSchoggiriegel ","pro Person","CHF",15.6,null,null,"CHF",{"$f":"IF(F9=0,0,IF(F9<5,D9*5,IF(F9>=5,D9*F9)))","v":0}]
["Einfacher Lunch\nSandwich gefüllt mit Käse\nSaisonale Frucht  \nSchoggiriegel ","pro Person","CHF",15.6,null,null,"CHF",0]
["Swiss Lunch\nPartybrötli mit Bündnerfleisch \nHörnlisalat \nKalte Platte (Käse- und Fleisch gemischt) mit Nussbrot\nSaisonaler Fruchtspiess\nLindor Kugel","pro Person","CHF",15.6,null,null,"CHF",0]
["Swiss Lunch\nPartybrötli mit Schweizer Käse\nHörnlisalat \nKalte Platte (Käse- und Fleisch gemischt) mit Nussbrot\nSaisonaler Fruchtspiess\nLindor Kugel","pro Person","CHF",15.6,null,null,"CHF",0]
["Vital Lunch\nProteinbrötli mit Hüttenkäse, Avocado und Kresse\nMini Wrap mit Frischkäse\nGemischter Salat mit Balsamico Dressing\nMüsliriegel\nJogurt mit saisonalen Früchten   ","pro Person","CHF",26.2,null,null,"CHF",0]
["Mediterranean Lunch \nFocaccia gefüllt mit Antipasti Gemüse, Rucola und \nParmaschinken\nGriechischer Salat mit Oliven und Feta\nFruchtspiess  \nDessert der Saison","pro Person","CHF",19.2,null,null,"CHF",0]
["French Lunch \nMini Sandwiches mit dunklem und hellem Baguette \ngefüllt mit Rohschinken und Brie\nRatatouillesalat mit Ziegenkäse\nMini Quiche mit Käse oder Gemüse\nSaisonaler Fruchtsalat  \nAssortierte Mini Patisserie","pro Person","CHF",24,null,null,"CHF",0]
["Salat im Glas"]
["Gemischter Saisonsalat mit Kernen & Nüssen  ","pro Stück","CHF",2.5,null,null,"CHF",{"$f":"IF(F17=0,0,IF(F17<10,D17*10,IF(F17>=10,D17*F17)))","v":0}]
["Griechischer Salat","pro Stück","CHF",2.5,null,null,"CHF",{"$f":"IF(F18=0,0,IF(F18<10,D18*10,IF(F18>=10,D18*F18)))","v":0}]
["Quinoa Salat mit Feta und Avocado ","pro Stück","CHF",3.2,null,null,"CHF",0]
["Linsensalat mit Rauchlachs ","pro Stück","CHF",2,null,null,"CHF",0]
["Waldorf Salat","pro Stück","CHF",2.8,null,null,"CHF",0]
["Wurst-Käse Salat","pro Stück","CHF",3.7,null,null,"CHF",0]
["Gurkensalat mit Dill","pro Stück","CHF",1.5,null,null,"CHF",0]
["Ceasar Salat mit Speck und Croutons","pro Stück","CHF",4.2,null,null,"CHF",0]
["Asiatischer Glasnudelsalat mit Cashew Nüssen","pro Stück","CHF",4.5,null,null,"CHF",0]
["Poulet Tandoori Salat mit Jogurt und Minze ","pro Stück","CHF",4,null,null,"CHF",0]
["Avocado Salat mit Mango und Chili","pro Stück","CHF",3.6,null,null,"CHF",0]
["Taboulée Salat mit Minze","pro Stück","CHF",4.5999999999999996,null,null,"CHF",0]
["Crevetten Salat Thai Style mit Chili, Limetten und Koriander","pro Stück","CHF",6.7,null,null,"CHF",0]
["Suppen im Weck-Glas\nab 10 Personen bestellbar"]
["Kalte Gazpacho","pro Person","CHF",4,null,null,"CHF",0]
["Tomatensuppe mit Sahne Häubchen","pro Person","CHF",4,null,null,"CHF",0]
["Kalte Avocado-Kokossuppe","pro Person","CHF",4,null,null,"CHF",0]
["Linsen-Ingwer Suppe mit Apfelwürfel","pro Person","CHF",4,null,null,"CHF",0]
["Red Thai Currysoup","pro Person","CHF",4,null,null,"CHF",0]
["Lunch warm\nab 10 Personen bestellbar"]
["Tapas Lunchpaket\nAlbondigas\nPatatas Bravas\nQuesadillas (Käse-Chili Füllung)\nDatteln im Speckmantel\nTortilla","pro Person","CHF",15,null,null,"CHF",0]
["Streetfood Lunch \nPulled Pork Mini Burger\nPotato Wedges pikant gewürzt\nAmerican Hot Dog\nFish Fingers\nFocaccia mit Falafel und Tzaziki gefüllt","pro Person","CHF",18.5,null,null,"CHF",0]
["Pasta Plausch \nZweierlei Pasta mit zwei Saucen\nBolognese-, Carbonara-, Napoli- oder Pesto Sauce\nDazu geriebener Parmesan","pro Person","CHF",12.5,null,null,"CHF",0]
["Tagesmenu aus dem Restaurant","pro Person","CHF",12.5,null,null,"CHF",0]

{"sheet":"Dessert","index":4,"n_rows":32,"n_cols":8,"rows_kept":32,"cut":false,"hidden":false,"merged":[[2,0,2,7]]}
[" Bestellung Catering"]
[]
[]
["Navigieren Sie ganz unkompiziert durch das Bestellformular."]
[null,"Einheit",null,"Preis/Einheit",null,"Anzahl",null,"Total"]
["Dessert / Süsses\nDesserts ab 5 Personen bestellbar"]
["Saisonales Tagesdessert im Glas   ","pro Stück","CHF",1.8,null,null,"CHF",{"$f":"IF(F7=0,0,IF(F7<5,D7*5,IF(F7>=5,D7*F7)))","v":0}]
["Toblerone-Mousse im Glas","pro Stück","CHF",2,null,null,"CHF",{"$f":"IF(F8=0,0,IF(F8<5,D8*5,IF(F8>=5,D8*F8)))","v":0}]
["Macarons assortiert ","pro Stück","CHF",2,null,null,"CHF",0]
["Schoko-Kuss","pro Stück","CHF",2,null,null,"CHF",0]
["Pralinés assortiert   ","pro Stück","CHF",1.5,null,null,"CHF",0]
["Saisonaler Fruchtspiess","pro Stück","CHF",2.5,null,null,"CHF",0]
["Hausgemachtes Mini Pana Cotta mit saisonalen Früchten  ","pro Stück","CHF",2,null,null,"CHF",0]
["Hausgemachtes Karamelköpfli","pro Stück","CHF",3.7,null,null,"CHF",0]
["Hausgemachter Schokoladenkuchen\n","pro Person","CHF",3.7,null,null,"CHF",0]
["Hausgemachter Zitronenkuchen\n","pro Person","CHF",3.7,null,null,"CHF",0]
["Hausgemachter Tiroler Cake\n","pro Person","CHF",3.7,null,null,"CHF",0]
["Hausgemachter Rüeblikuchen","pro Person","CHF",3.7,null,null,"CHF",0]
["Schoggigipfel","pro Stück","CHF",2.7,null,null,"CHF",0]
["Crème Schnitte  ","pro Stück","CHF",3.5,null,null,"CHF",0]
["Brownie","pro Stück","CHF",2.5,null,null,"CHF",0]
["Mini Patisserie, assortiert","pro Person","CHF",2.5,null,null,"CHF",0]
["Muffins\n(Blueberry, Schokolade, Himbeere)","pro Stück","CHF",2.6,null,null,"CHF",0]
["Cookies\n(Schokolade, Macadamia, ChocolateChip, Walnuss, Butter)","pro Person","CHF",3.1,null,null,"CHF",0]
["Waffel","pro Person","CHF",3.5,null,null,"CHF",0]
["Chiapudding","pro Person","CHF",1,null,null,"CHF",0]
["Magnum Mini Glace, assortiert","pro Stück","CHF",3.4,null,null,"CHF",0]
["Veganes Panna Cotta mit Fruchttopping","pro Stück","CHF",3.9,null,null,"CHF",0]
["Veganer Apfelstrudel","pro Stück","CHF",4.0999999999999996,null,null,"CHF",0]
["Kichererbsen-Schokoladenmousse","pro Stück","CHF",4.7,null,null,"CHF",0]
["Geburtstagskuchen / -Torte für den speziellen Tag","Absprache"]
["Geburtstagskuchen / -Torte für den speziellen Tag \nFür Ihre Sitzung stellen wir Ihnen gerne eine Eistruhe mit einer Auswahl an leckerem Glace / Becher in Ihnen Meetingraum. ","Absprache"]

{"sheet":"Getränke","index":5,"n_rows":49,"n_cols":8,"rows_kept":49,"cut":false,"hidden":false,"merged":[[2,0,2,7]]}
[" Bestellung Catering"]
[]
[]
["Navigieren Sie ganz unkompiziert durch das Bestellformular."]
[null,"Einheit",null,"Preis/Einheit",null,"Anzahl",null,"Total"]
["Getränke "]
["Alkoholfreie Getränke"]
["Wasser"]
["Valser ohne Kohlensäure, PET","0.5 l","CHF",2.5,null,null,"CHF",{"$f":"D9*F9","v":0}]
["Valser ohne Kohlensäure, Glas","1l","CHF",4,null,null,"CHF",0]
["Valser mit Kohlensäure, PET","0.5 l","CHF",2.5,null,null,"CHF",0]
["Valser mit Kohlensäure, Glas","1l","CHF",4,null,null,"CHF",0]
["Flavored Water mit saisonalem Geschmack  ","1 l","CHF",6,null,null,"CHF",0]
["Flavored Water mit saisonalem Geschmack ","4 l","CHF",24,null,null,"CHF",0]
["Säfte und Hausgemachtes",null,null,null,null,null,"CHF",0]
["Orangensaft","1 l","CHF",6,null,null,"CHF",0]
["Hausgemachte Smoothies ","2.5 dl","CHF",3.5,null,null,"CHF",0]
["Süssgetränke"]
["Coca-Cola","4.5 dl","CHF",3,null,null,"CHF",{"$f":"D19*F19","v":0}]
["Coke Zero","4.5 dl","CHF",3,null,null,"CHF",0]
["Fanta","5 dl","CHF",3,null,null,"CHF",0]
["Sprite","5 dl","CHF",3,null,null,"CHF",0]
["Ice Tea Lemon","5 dl","CHF",3,null,null,"CHF",0]
["Ice Tea Peach","5 dl","CHF",3,null,null,"CHF",0]
["Rivella rot ","5 dl","CHF",3,null,null,"CHF",0]
["Rivella blau ","5 dl","CHF",3,null,null,"CHF",0]
["Ramseier Apfelschorle","5 dl","CHF",3,null,null,"CHF",0]
["Comella","3.3 dl","CHF",3,null,null,"CHF",0]
["Tee"]
["Diverse Sorten, assortiert","pro Tasse","CHF",2.5,null,null,"CHF",{"$f":"D30*F30","v":0}]
[null,"1 l","CHF",13.3,null,null,"CHF",0]
["Kaffee"]
["Frischer Kaffee","pro Tasse","CHF",2.5,null,null,"CHF",{"$f":"D33*F33","v":0}]
[null,"1 l","CHF",13.3,null,null,"CHF",{"$f":"D34*F34","v":0}]
["Cappuccino","pro Tasse","CHF",3,null,null,"CHF",{"$f":"D35*F35","v":0}]
["Café Latte","pro Tasse","CHF",3,null,null,"CHF",0]
["Espresso","pro Tasse","CHF",2.5,null,null,"CHF",0]
["Alkoholische Getränke"]
["Bier"]
["Feldschlösschen ","33cl","CHF ",3.5]
["Feldschlösschen ( alkoholfrei)","33cl","CHF",3,null,null,"CHF",{"$f":"D41*F41","v":0}]
["Prosecco ",null,null,null,null,null,"CHF",0]
["Asolo Superiore","7.5 dl","CHF",24.5,null,null,"CHF",0]
["Weisswein","7.5 dl","CHF",24.5]
["Epesses Lavaux"]
["Compleo blanc","7.5 dl","CHF",24.5,null,null,"CHF",{"$f":"D46*F46","v":0}]
["Rotwein",null,null,null,null,null,"CHF",0]
["Compleocuvee noir","7.5dl","CHF",24.5]
["Rioja Crianza Verena","7.5 dl","CHF",24.5,null,null,"CHF",0]